{"text_format":"1","workbook":"xlsx","n_sheets":8,"sheets":["Sheet1","Sheet2","Sheet3","Sheet4","Sheet5","Sheet6","Sheet7","Sheet8"],"not_rendered":{"charts":0,"images":0,"macros":1,"external_links":0,"defined_names":0,"comments":0,"pivot_tables":0},"unopened":[],"bounds":{"document_bytes":16777216,"sheet_cells":100000,"rows_first":2000,"rows_last":500,"rows_between":2000,"halvings":0,"cell_chars":16384,"cell_head_chars":4096},"cells_cut":0,"cells_raw":0,"read":"whole","date_system":"1900"}

{"sheet":"Sheet1","index":0,"n_rows":30,"n_cols":5,"rows_kept":30,"cut":false,"hidden":false,"merged":[]}
["0","02","03","04",0]
["name","password","date","time"]
["kkk","kkk","2020-10-02","18:24:42"]
["kkk","kkk","2020-10-02","19:37:46"]
["kkk","kkk","2020-10-02","19:40:17"]
["kkk","kkk","2020-10-02","19:47:56"]
["kkk","kkk","2020-10-02","20:11:55"]
["kkk","kkk","2020-10-02","20:41:42"]
["kkk","kkk","2020-10-02","21:01:29"]
["kkk","kkk","2020-10-02","21:53:01"]
["kkk","kkk","2020-10-02","21:56:07"]
["kkk","kkk","2020-10-02","21:58:16"]
["kkk","kkk","2020-10-02","21:59:21"]
["kkk","kkk","2020-10-02","22:03:54"]
["kkk","kkk","2020-10-02","22:08:36"]
["kkk","kkk","2020-10-02","22:27:07"]
["kkk","kkk","2020-10-02","23:05:40"]
["kkk","kkk","2020-10-02","23:17:06"]
["kkk","kkk","2020-10-02","00:00:00"]
["kkk","kkk","2020-10-02","23:53:52"]
["kkk","kkk","2020-10-03","00:11:31"]
["kkk","kkk","2020-10-03","01:16:06"]
["kkk","kkk","2020-10-03","02:02:50"]
["kkk","kkk","2020-10-03","19:14:13"]
["kkk","kkk","2020-10-03","19:50:43"]
["kkk","kkk","2020-10-03","19:53:16"]
["kkk","kkk","2020-10-03","20:00:14"]
["kkk","kkkk","2020-10-03","20:11:58"]
["kkk","kkk","2020-10-03","20:12:03"]
["kkk","kkk","2020-10-03","20:15:33"]

{"sheet":"Sheet2","index":1,"n_rows":1245,"n_cols":6,"rows_kept":1245,"cut":false,"hidden":false,"merged":[]}
["الكود","الصنف","العدد","س1","ن","السعر"]
[243,"عبايه ساندي",1,70,{"$f":"40/100*D2","v":28},{"$f":"E2+D2","v":98}]
[112,"كاش جمانه",1,125,{"$f":"45/100*D3","v":56.25},{"$f":"D3+E3","v":181.25}]
[310,"كاش حياه ",1,70,{"$f":"45/100*D4","v":31.5},{"$f":"D4+E4","v":101.5}]
[4056,"كاش  جي اتش",2,40,18,58]
[309,"كاش حياه ",1,70,31.5,101.5]
[303,"كاش حياه ",1,70,31.5,101.5]
[807,"كاش لوران",1,70,31.5,101.5]
[8426,"كاش جي ام",1,40,18,58]
[1450,"كاش باسورد0",1,40,18,58]
[4027,"كاش جي اتش",1,40,18,58]
[735,"عبايه لوكا",1,75,33.75,108.75]
[306,"عبايا الصباح كم",1,140,63,203]
[192,"لانجري  روبن",2,40,18,58]
[911,"      جلاريا",1,75,33.75,108.75]
[32,"       تالي",1,75,33.75,108.75]
[1033,"عالموضه",1,70,31.5,101.5]
[189,"روبن",1,40,18,58]
[402,"ريكازا",1,70,31.5,101.5]
[177,"روبن",1,40,18,58]
[506,"حنين",1,140,63,203]
[7062,"كلارا",1,135,60.75,195.75]
[370,"مشاعر",1,40,18,58]
[5032,"بيوتي نايت",1,80,36,116]
[190,"روبن",1,40,18,58]
[510,"مشاعر",2,40,18,58]
[713,"جوليسيا",1,75,33.75,108.75]
[2088,"مرسيليا",1,44,19.8,63.8]
[800,"جولي",1,70,31.5,101.5]
[2027,"دزاير",1,80,36,116]
[143,"الماسه",1,130,58.5,188.5]
[186,"المتميز",1,80,36,116]
[1088,"مس امنيه",1,45,20.25,65.25]
[189,"روبن",1,40,18,58]
[7021,"كلارا",1,90,40.5,130.5]
[253,"البسيط",1,60,27,87]
[120,"هاي ليدي",1,55,24.75,79.75]
[460,"ميرا",1,50,22.5,72.5]
[195,"روبن",1,30,13.5,43.5]
[505,"مشاعر",1,25,11.25,36.25]
[385,"مشاعر",1,25,11.25,36.25]
[450,"مشاعر",1,25,11.25,36.25]
[560,"مشاعر",1,25,11.25,36.25]
[515,"مشاعر",1,25,11.25,36.25]
[130,"ردروز",1,46,20.7,66.7]
[565,"مشاعر",1,25,11.25,36.25]
[102,"العروسه",1,65,29.25,94.25]
[255,"موجه",1,45,{"$f":"45/100*D48","v":20.25},{"$f":"D48+E48","v":65.25}]
[404,"موجه",1,60,27,87]
[242,"موجه",1,46,20.7,66.7]
[244,"موجه",2,46,20.7,66.7]
[183,"روبن",1,25,11.25,36.25]
[266,"جوي",1,90,40.5,130.5]
[]
[]
[]
[]
[]
[]
[]
[]
[]
[]
[]
[]
[]
[]
[]
[]
[]
[]
[]
[]
[]
[]
[]
[]
[]
[]
[]
[]
[]
[]
[]
[]
[]
[]
[]
[]
[]
[]
[]
[]
[]
[]
[]
[]
[]
[]
[]
[]
[]
[]
[]
[]
[]
[]
[null,null,null,null,{"$f":"40/100*D108","v":0},{"$f":"E108+D108","v":0}]
[null,null,null,null,0,0]
[null,null,null,null,0,0]
[null,null,null,null,0,0]
[null,null,null,null,0,0]
[null,null,null,null,0,0]
[null,null,null,null,0,0]
[null,null,null,null,0,0]
[null,null,null,null,0,0]
[null,null,null,null,0,0]
[null,null,null,null,0,0]
[null,null,null,null,0,0]
[null,null,null,null,0,0]
[null,null,null,null,0,0]
[null,null,null,null,0,0]
[null,null,null,null,0,0]
[null,null,null,null,0,0]
[null,null,null,null,0,0]
[null,null,null,null,0,0]
[null,null,null,null,0,0]
[null,null,null,null,0,0]
[null,null,null,null,0,0]
[null,null,null,null,0,0]
[null,null,null,null,0,0]
[null,null,null,null,0,0]
[null,null,null,null,0,0]
[null,null,null,null,0,0]
[null,null,null,null,0,0]
[null,null,null,null,0,0]
[null,null,null,null,0,0]
[null,null,null,null,0,0]
[null,null,null,null,0,0]
[null,null,null,null,0,0]
[null,null,null,null,0,0]
[null,null,null,null,0,0]
[null,null,null,null,0,0]
[null,null,null,null,0,0]
[null,null,null,null,0,0]
[null,null,null,null,0,0]
[null,null,null,null,0,0]
[null,null,null,null,0,0]
[null,null,null,null,0,0]
[null,null,null,null,0,0]
[null,null,null,null,0,0]
[null,null,null,null,0,0]
[null,null,null,null,0,0]
[null,null,null,null,0,0]
[null,null,null,null,0,0]
[null,null,null,null,0,0]
[null,null,null,null,0,0]
[null,null,null,null,0,0]
[null,null,null,null,0,0]
[null,null,null,null,0,0]
[null,null,null,null,0,0]
[null,null,null,null,0,0]
[null,null,null,null,0,0]
[null,null,null,null,0,0]
[null,null,null,null,0,0]
[null,null,null,null,0,0]
[null,null,null,null,0,0]
[null,null,null,null,{"$f":"40/100*D168","v":0},{"$f":"E168+D168","v":0}]
[null,null,null,null,0,0]
[null,null,null,null,0,0]
[null,null,null,null,0,0]
[null,null,null,null,0,0]
[null,null,null,null,0,0]
[null,null,null,null,0,0]
[null,null,null,null,0,0]
[null,null,null,null,0,0]
[null,null,null,null,0,0]
[null,null,null,null,0,0]
[null,null,null,null,0,0]
[null,null,null,null,0,0]
[null,null,null,null,0,0]
[null,null,null,null,0,0]
[null,null,null,null,0,0]
[null,null,null,null,0,0]
[null,null,null,null,0,0]
[null,null,null,null,0,0]
[null,null,null,null,0,0]
[null,null,null,null,0,0]
[null,null,null,null,0,0]
[null,null,null,null,0,0]
[null,null,null,null,0,0]
[null,null,null,null,0,0]
[null,null,null,null,0,0]
[null,null,null,null,0,0]
[null,null,null,null,0,0]
[null,null,null,null,0,0]
[null,null,null,null,0,0]
[null,null,null,null,0,0]
[null,null,null,null,0,0]
[null,null,null,null,0,0]
[null,null,null,null,0,0]
[null,null,null,null,0,0]
[null,null,null,null,0,0]
[null,null,null,null,0,0]
[null,null,null,null,0,0]
[null,null,null,null,0,0]
[null,null,null,null,0,0]
[null,null,null,null,0,0]
[null,null,null,null,0,0]
[null,null,null,null,0,0]
[null,null,null,null,0,0]
[null,null,null,null,0,0]
[null,null,null,null,0,0]
[null,null,null,null,0,0]
[null,null,null,null,0,0]
[null,null,null,null,0,0]
[null,null,null,null,0,0]
[null,null,null,null,0,0]
[null,null,null,null,0,0]
[null,null,null,null,0,0]
[null,null,null,null,0,0]
[null,null,null,null,0,0]
[null,null,null,null,0,0]
[null,null,null,null,0,0]
[null,null,null,null,0,0]
[null,null,null,null,0,0]
[null,null,null,null,0,0]
[null,null,null,null,0,0]
[null,null,null,null,0,0]
[null,null,null,null,0,0]
[null,null,null,null,0,0]
[null,null,null,null,{"$f":"40/100*D232","v":0},{"$f":"E232+D232","v":0}]
[null,null,null,null,0,0]
[null,null,null,null,0,0]
[null,null,null,null,0,0]
[null,null,null,null,0,0]
[null,null,null,null,0,0]
[null,null,null,null,0,0]
[null,null,null,null,0,0]
[null,null,null,null,0,0]
[null,null,null,null,0,0]
[null,null,null,null,0,0]
[null,null,null,null,0,0]
[null,null,null,null,0,0]
[null,null,null,null,0,0]
[null,null,null,null,0,0]
[null,null,null,null,0,0]
[null,null,null,null,0,0]
[null,null,null,null,0,0]
[null,null,null,null,0,0]
[null,null,null,null,0,0]
[null,null,null,null,0,0]
[null,null,null,null,0,0]
[null,null,null,null,0,0]
[null,null,null,null,0,0]
[null,null,null,null,0,0]
[null,null,null,null,0,0]
[null,null,null,null,0,0]
[null,null,null,null,0,0]
[null,null,null,null,0,0]
[null,null,null,null,0,0]
[null,null,null,null,0,0]
[null,null,null,null,0,0]
[null,null,null,null,0,0]
[null,null,null,null,0,0]
[null,null,null,null,0,0]
[null,null,null,null,0,0]
[null,null,null,null,0,0]
[null,null,null,null,0,0]
[null,null,null,null,0,0]
[null,null,null,null,0,0]
[null,null,null,null,0,0]
[null,null,null,null,0,0]
[null,null,null,null,0,0]
[null,null,null,null,0,0]
[null,null,null,null,0,0]
[null,null,null,null,0,0]
[null,null,null,null,0,0]
[null,null,null,null,0,0]
[null,null,null,null,0,0]
[null,null,null,null,0,0]
[null,null,null,null,0,0]
[null,null,null,null,0,0]
[null,null,null,null,0,0]
[null,null,null,null,0,0]
[null,null,null,null,0,0]
[null,null,null,null,0,0]
[null,null,null,null,0,0]
[null,null,null,null,0,0]
[null,null,null,null,0,0]
[null,null,null,null,0,0]
[null,null,null,null,0,0]
[null,null,null,null,0,0]
[null,null,null,null,0,0]
[null,null,null,null,0,0]
[null,null,null,null,{"$f":"40/100*D296","v":0},{"$f":"E296+D296","v":0}]
[null,null,null,null,0,0]
[null,null,null,null,0,0]
[null,null,null,null,0,0]
[null,null,null,null,0,0]
[null,null,null,null,0,0]
[null,null,null,null,0,0]
[null,null,null,null,0,0]
[null,null,null,null,0,0]
[null,null,null,null,0,0]
[null,null,null,null,0,0]
[null,null,null,null,0,0]
[null,null,null,null,0,0]
[null,null,null,null,0,0]
[null,null,null,null,0,0]
[null,null,null,null,0,0]
[null,null,null,null,0,0]
[null,null,null,null,0,0]
[null,null,null,null,0,0]
[null,null,null,null,0,0]
[null,null,null,null,0,0]
[null,null,null,null,0,0]
[null,null,null,null,0,0]
[null,null,null,null,0,0]
[null,null,null,null,0,0]
[null,null,null,null,0,0]
[null,null,null,null,0,0]
[null,null,null,null,0,0]
[null,null,null,null,0,0]
[null,null,null,null,0,0]
[null,null,null,null,0,0]
[null,null,null,null,0,0]
[null,null,null,null,0,0]
[null,null,null,null,0,0]
[null,null,null,null,0,0]
[null,null,null,null,0,0]
[null,null,null,null,0,0]
[null,null,null,null,0,0]
[null,null,null,null,0,0]
[null,null,null,null,0,0]
[null,null,null,null,0,0]
[null,null,null,null,0,0]
[null,null,null,null,0,0]
[null,null,null,null,0,0]
[null,null,null,null,0,0]
[null,null,null,null,0,0]
[null,null,null,null,0,0]
[null,null,null,null,0,0]
[null,null,null,null,0,0]
[null,null,null,null,0,0]
[null,null,null,null,0,0]
[null,null,null,null,0,0]
[null,null,null,null,0,0]
[null,null,null,null,0,0]
[null,null,null,null,0,0]
[null,null,null,null,0,0]
[null,null,null,null,0,0]
[null,null,null,null,0,0]
[null,null,null,null,0,0]
[null,null,null,null,0,0]
[null,null,null,null,0,0]
[null,null,null,null,0,0]
[null,null,null,null,0,0]
[null,null,null,null,0,0]
[null,null,null,null,{"$f":"40/100*D360","v":0},{"$f":"E360+D360","v":0}]
[null,null,null,null,0,0]
[null,null,null,null,0,0]
[null,null,null,null,0,0]
[null,null,null,null,0,0]
[null,null,null,null,0,0]
[null,null,null,null,0,0]
[null,null,null,null,0,0]
[null,null,null,null,0,0]
[null,null,null,null,0,0]
[null,null,null,null,0,0]
[null,null,null,null,0,0]
[null,null,null,null,0,0]
[null,null,null,null,0,0]
[null,null,null,null,0,0]
[null,null,null,null,0,0]
[null,null,null,null,0,0]
[null,null,null,null,0,0]
[null,null,null,null,0,0]
[null,null,null,null,0,0]
[null,null,null,null,0,0]
[null,null,null,null,0,0]
[null,null,null,null,0,0]
[null,null,null,null,0,0]
[null,null,null,null,0,0]
[null,null,null,null,0,0]
[null,null,null,null,0,0]
[null,null,null,null,0,0]
[null,null,null,null,0,0]
[null,null,null,null,0,0]
[null,null,null,null,0,0]
[null,null,null,null,0,0]
[null,null,null,null,0,0]
[null,null,null,null,0,0]
[null,null,null,null,0,0]
[null,null,null,null,0,0]
[null,null,null,null,0,0]
[null,null,null,null,0,0]
[null,null,null,null,0,0]
[null,null,null,null,0,0]
[null,null,null,null,0,0]
[null,null,null,null,0,0]
[null,null,null,null,0,0]
[null,null,null,null,0,0]
[null,null,null,null,0,0]
[null,null,null,null,0,0]
[null,null,null,null,0,0]
[null,null,null,null,0,0]
[null,null,null,null,0,0]
[null,null,null,null,0,0]
[null,null,null,null,0,0]
[null,null,null,null,0,0]
[null,null,null,null,0,0]
[null,null,null,null,0,0]
[null,null,null,null,0,0]
[null,null,null,null,0,0]
[null,null,null,null,0,0]
[null,null,null,null,0,0]
[null,null,null,null,0,0]
[null,null,null,null,0,0]
[null,null,null,null,0,0]
[null,null,null,null,0,0]
[null,null,null,null,0,0]
[null,null,null,null,0,0]
[null,null,null,null,{"$f":"40/100*D424","v":0},{"$f":"E424+D424","v":0}]
[null,null,null,null,0,0]
[null,null,null,null,0,0]
[null,null,null,null,0,0]
[null,null,null,null,0,0]
[null,null,null,null,0,0]
[null,null,null,null,0,0]
[null,null,null,null,0,0]
[null,null,null,null,0,0]
[null,null,null,null,0,0]
[null,null,null,null,0,0]
[null,null,null,null,0,0]
[null,null,null,null,0,0]
[null,null,null,null,0,0]
[null,null,null,null,0,0]
[null,null,null,null,0,0]
[null,null,null,null,0,0]
[null,null,null,null,0,0]
[null,null,null,null,0,0]
[null,null,null,null,0,0]
[null,null,null,null,0,0]
[null,null,null,null,0,0]
[null,null,null,null,0,0]
[null,null,null,null,0,0]
[null,null,null,null,0,0]
[null,null,null,null,0,0]
[null,null,null,null,0,0]
[null,null,null,null,0,0]
[null,null,null,null,0,0]
[null,null,null,null,0,0]
[null,null,null,null,0,0]
[null,null,null,null,0,0]
[null,null,null,null,0,0]
[null,null,null,null,0,0]
[null,null,null,null,0,0]
[null,null,null,null,0,0]
[null,null,null,null,0,0]
[null,null,null,null,0,0]
[null,null,null,null,0,0]
[null,null,null,null,0,0]
[null,null,null,null,0,0]
[null,null,null,null,0,0]
[null,null,null,null,0,0]
[null,null,null,null,0,0]
[null,null,null,null,0,0]
[null,null,null,null,0,0]
[null,null,null,null,0,0]
[null,null,null,null,0,0]
[null,null,null,null,0,0]
[null,null,null,null,0,0]
[null,null,null,null,0,0]
[null,null,null,null,0,0]
[null,null,null,null,0,0]
[null,null,null,null,0,0]
[null,null,null,null,0,0]
[null,null,null,null,0,0]
[null,null,null,null,0,0]
[null,null,null,null,0,0]
[null,null,null,null,0,0]
[null,null,null,null,0,0]
[null,null,null,null,0,0]
[null,null,null,null,0,0]
[null,null,null,null,0,0]
[null,null,null,null,0,0]
[null,null,null,null,{"$f":"40/100*D488","v":0},{"$f":"E488+D488","v":0}]
[null,null,null,null,0,0]
[null,null,null,null,0,0]
[null,null,null,null,0,0]
[null,null,null,null,0,0]
[null,null,null,null,0,0]
[null,null,null,null,0,0]
[null,null,null,null,0,0]
[null,null,null,null,0,0]
[null,null,null,null,0,0]
[null,null,null,null,0,0]
[null,null,null,null,0,0]
[null,null,null,null,0,0]
[null,null,null,null,0,0]
[null,null,null,null,0,0]
[null,null,null,null,0,0]
[null,null,null,null,0,0]
[null,null,null,null,0,0]
[null,null,null,null,0,0]
[null,null,null,null,0,0]
[null,null,null,null,0,0]
[null,null,null,null,0,0]
[null,null,null,null,0,0]
[null,null,null,null,0,0]
[null,null,null,null,0,0]
[null,null,null,null,0,0]
[null,null,null,null,0,0]
[null,null,null,null,0,0]
[null,null,null,null,0,0]
[null,null,null,null,0,0]
[null,null,null,null,0,0]
[null,null,null,null,0,0]
[null,null,null,null,0,0]
[null,null,null,null,0,0]
[null,null,null,null,0,0]
[null,null,null,null,0,0]
[null,null,null,null,0,0]
[null,null,null,null,0,0]
[null,null,null,null,0,0]
[null,null,null,null,0,0]
[null,null,null,null,0,0]
[null,null,null,null,0,0]
[null,null,null,null,0,0]
[null,null,null,null,0,0]
[null,null,null,null,0,0]
[null,null,null,null,0,0]
[null,null,null,null,0,0]
[null,null,null,null,0,0]
[null,null,null,null,0,0]
[null,null,null,null,0,0]
[null,null,null,null,0,0]
[null,null,null,null,0,0]
[null,null,null,null,0,0]
[null,null,null,null,0,0]
[null,null,null,null,0,0]
[null,null,null,null,0,0]
[null,null,null,null,0,0]
[null,null,null,null,0,0]
[null,null,null,null,0,0]
[null,null,null,null,0,0]
[null,null,null,null,0,0]
[null,null,null,null,0,0]
[null,null,null,null,0,0]
[null,null,null,null,0,0]
[null,null,null,null,{"$f":"40/100*D552","v":0},{"$f":"E552+D552","v":0}]
[null,null,null,null,0,0]
[null,null,null,null,0,0]
[null,null,null,null,0,0]
[null,null,null,null,0,0]
[null,null,null,null,0,0]
[null,null,null,null,0,0]
[null,null,null,null,0,0]
[null,null,null,null,0,0]
[null,null,null,null,0,0]
[null,null,null,null,0,0]
[null,null,null,null,0,0]
[null,null,null,null,0,0]
[null,null,null,null,0,0]
[null,null,null,null,0,0]
[null,null,null,null,0,0]
[null,null,null,null,0,0]
[null,null,null,null,0,0]
[null,null,null,null,0,0]
[null,null,null,null,0,0]
[null,null,null,null,0,0]
[null,null,null,null,0,0]
[null,null,null,null,0,0]
[null,null,null,null,0,0]
[null,null,null,null,0,0]
[null,null,null,null,0,0]
[null,null,null,null,0,0]
[null,null,null,null,0,0]
[null,null,null,null,0,0]
[null,null,null,null,0,0]
[null,null,null,null,0,0]
[null,null,null,null,0,0]
[null,null,null,null,0,0]
[null,null,null,null,0,0]
[null,null,null,null,0,0]
[null,null,null,null,0,0]
[null,null,null,null,0,0]
[null,null,null,null,0,0]
[null,null,null,null,0,0]
[null,null,null,null,0,0]
[null,null,null,null,0,0]
[null,null,null,null,0,0]
[null,null,null,null,0,0]
[null,null,null,null,0,0]
[null,null,null,null,0,0]
[null,null,null,null,0,0]
[null,null,null,null,0,0]
[null,null,null,null,0,0]
[null,null,null,null,0,0]
[null,null,null,null,0,0]
[null,null,null,null,0,0]
[null,null,null,null,0,0]
[null,null,null,null,0,0]
[null,null,null,null,0,0]
[null,null,null,null,0,0]
[null,null,null,null,0,0]
[null,null,null,null,0,0]
[null,null,null,null,0,0]
[null,null,null,null,0,0]
[null,null,null,null,0,0]
[null,null,null,null,0,0]
[null,null,null,null,0,0]
[null,null,null,null,0,0]
[null,null,null,null,0,0]
[null,null,null,null,{"$f":"40/100*D616","v":0},{"$f":"E616+D616","v":0}]
[null,null,null,null,0,0]
[null,null,null,null,0,0]
[null,null,null,null,0,0]
[null,null,null,null,0,0]
[null,null,null,null,0,0]
[null,null,null,null,0,0]
[null,null,null,null,0,0]
[null,null,null,null,0,0]
[null,null,null,null,0,0]
[null,null,null,null,0,0]
[null,null,null,null,0,0]
[null,null,null,null,0,0]
[null,null,null,null,0,0]
[null,null,null,null,0,0]
[null,null,null,null,0,0]
[null,null,null,null,0,0]
[null,null,null,null,0,0]
[null,null,null,null,0,0]
[null,null,null,null,0,0]
[null,null,null,null,0,0]
[null,null,null,null,0,0]
[null,null,null,null,0,0]
[null,null,null,null,0,0]
[null,null,null,null,0,0]
[null,null,null,null,0,0]
[null,null,null,null,0,0]
[null,null,null,null,0,0]
[null,null,null,null,0,0]
[null,null,null,null,0,0]
[null,null,null,null,0,0]
[null,null,null,null,0,0]
[null,null,null,null,0,0]
[null,null,null,null,0,0]
[null,null,null,null,0,0]
[null,null,null,null,0,0]
[null,null,null,null,0,0]
[null,null,null,null,0,0]
[null,null,null,null,0,0]
[null,null,null,null,0,0]
[null,null,null,null,0,0]
[null,null,null,null,0,0]
[null,null,null,null,0,0]
[null,null,null,null,0,0]
[null,null,null,null,0,0]
[null,null,null,null,0,0]
[null,null,null,null,0,0]
[null,null,null,null,0,0]
[null,null,null,null,0,0]
[null,null,null,null,0,0]
[null,null,null,null,0,0]
[null,null,null,null,0,0]
[null,null,null,null,0,0]
[null,null,null,null,0,0]
[null,null,null,null,0,0]
[null,null,null,null,0,0]
[null,null,null,null,0,0]
[null,null,null,null,0,0]
[null,null,null,null,0,0]
[null,null,null,null,0,0]
[null,null,null,null,0,0]
[null,null,null,null,0,0]
[null,null,null,null,0,0]
[null,null,null,null,0,0]
[null,null,null,null,{"$f":"40/100*D680","v":0},{"$f":"E680+D680","v":0}]
[null,null,null,null,0,0]
[null,null,null,null,0,0]
[null,null,null,null,0,0]
[null,null,null,null,0,0]
[null,null,null,null,0,0]
[null,null,null,null,0,0]
[null,null,null,null,0,0]
[null,null,null,null,0,0]
[null,null,null,null,0,0]
[null,null,null,null,0,0]
[null,null,null,null,0,0]
[null,null,null,null,0,0]
[null,null,null,null,0,0]
[null,null,null,null,0,0]
[null,null,null,null,0,0]
[null,null,null,null,0,0]
[null,null,null,null,0,0]
[null,null,null,null,0,0]
[null,null,null,null,0,0]
[null,null,null,null,0,0]
[null,null,null,null,0,0]
[null,null,null,null,0,0]
[null,null,null,null,0,0]
[null,null,null,null,0,0]
[null,null,null,null,0,0]
[null,null,null,null,0,0]
[null,null,null,null,0,0]
[null,null,null,null,0,0]
[null,null,null,null,0,0]
[null,null,null,null,0,0]
[null,null,null,null,0,0]
[null,null,null,null,0,0]
[null,null,null,null,0,0]
[null,null,null,null,0,0]
[null,null,null,null,0,0]
[null,null,null,null,0,0]
[null,null,null,null,0,0]
[null,null,null,null,0,0]
[null,null,null,null,0,0]
[null,null,null,null,0,0]
[null,null,null,null,0,0]
[null,null,null,null,0,0]
[null,null,null,null,0,0]
[null,null,null,null,0,0]
[null,null,null,null,0,0]
[null,null,null,null,0,0]
[null,null,null,null,0,0]
[null,null,null,null,0,0]
[null,null,null,null,0,0]
[null,null,null,null,0,0]
[null,null,null,null,0,0]
[null,null,null,null,0,0]
[null,null,null,null,0,0]
[null,null,null,null,0,0]
[null,null,null,null,0,0]
[null,null,null,null,0,0]
[null,null,null,null,0,0]
[null,null,null,null,0,0]
[null,null,null,null,0,0]
[null,null,null,null,0,0]
[null,null,null,null,0,0]
[null,null,null,null,0,0]
[null,null,null,null,0,0]
[null,null,null,null,{"$f":"40/100*D744","v":0},{"$f":"E744+D744","v":0}]
[null,null,null,null,0,0]
[null,null,null,null,0,0]
[null,null,null,null,0,0]
[null,null,null,null,0,0]
[null,null,null,null,0,0]
[null,null,null,null,0,0]
[null,null,null,null,0,0]
[null,null,null,null,0,0]
[null,null,null,null,0,0]
[null,null,null,null,0,0]
[null,null,null,null,0,0]
[null,null,null,null,0,0]
[null,null,null,null,0,0]
[null,null,null,null,0,0]
[null,null,null,null,0,0]
[null,null,null,null,0,0]
[null,null,null,null,0,0]
[null,null,null,null,0,0]
[null,null,null,null,0,0]
[null,null,null,null,0,0]
[null,null,null,null,0,0]
[null,null,null,null,0,0]
[null,null,null,null,0,0]
[null,null,null,null,0,0]
[null,null,null,null,0,0]
[null,null,null,null,0,0]
[null,null,null,null,0,0]
[null,null,null,null,0,0]
[null,null,null,null,0,0]
[null,null,null,null,0,0]
[null,null,null,null,0,0]
[null,null,null,null,0,0]
[null,null,null,null,0,0]
[null,null,null,null,0,0]
[null,null,null,null,0,0]
[null,null,null,null,0,0]
[null,null,null,null,0,0]
[null,null,null,null,0,0]
[null,null,null,null,0,0]
[null,null,null,null,0,0]
[null,null,null,null,0,0]
[null,null,null,null,0,0]
[null,null,null,null,0,0]
[null,null,null,null,0,0]
[null,null,null,null,0,0]
[null,null,null,null,0,0]
[null,null,null,null,0,0]
[null,null,null,null,0,0]
[null,null,null,null,0,0]
[null,null,null,null,0,0]
[null,null,null,null,0,0]
[null,null,null,null,0,0]
[null,null,null,null,0,0]
[null,null,null,null,0,0]
[null,null,null,null,0,0]
[null,null,null,null,0,0]
[null,null,null,null,0,0]
[null,null,null,null,0,0]
[null,null,null,null,0,0]
[null,null,null,null,0,0]
[null,null,null,null,0,0]
[null,null,null,null,0,0]
[null,null,null,null,0,0]
[null,null,null,null,{"$f":"40/100*D808","v":0},{"$f":"E808+D808","v":0}]
[null,null,null,null,0,0]
[null,null,null,null,0,0]
[null,null,null,null,0,0]
[null,null,null,null,0,0]
[null,null,null,null,0,0]
[null,null,null,null,0,0]
[null,null,null,null,0,0]
[null,null,null,null,0,0]
[null,null,null,null,0,0]
[null,null,null,null,0,0]
[null,null,null,null,0,0]
[null,null,null,null,0,0]
[null,null,null,null,0,0]
[null,null,null,null,0,0]
[null,null,null,null,0,0]
[null,null,null,null,0,0]
[null,null,null,null,0,0]
[null,null,null,null,0,0]
[null,null,null,null,0,0]
[null,null,null,null,0,0]
[null,null,null,null,0,0]
[null,null,null,null,0,0]
[null,null,null,null,0,0]
[null,null,null,null,0,0]
[null,null,null,null,0,0]
[null,null,null,null,0,0]
[null,null,null,null,0,0]
[null,null,null,null,0,0]
[null,null,null,null,0,0]
[null,null,null,null,0,0]
[null,null,null,null,0,0]
[null,null,null,null,0,0]
[null,null,null,null,0,0]
[null,null,null,null,0,0]
[null,null,null,null,0,0]
[null,null,null,null,0,0]
[null,null,null,null,0,0]
[null,null,null,null,0,0]
[null,null,null,null,0,0]
[null,null,null,null,0,0]
[null,null,null,null,0,0]
[null,null,null,null,0,0]
[null,null,null,null,0,0]
[null,null,null,null,0,0]
[null,null,null,null,0,0]
[null,null,null,null,0,0]
[null,null,null,null,0,0]
[null,null,null,null,0,0]
[null,null,null,null,0,0]
[null,null,null,null,0,0]
[null,null,null,null,0,0]
[null,null,null,null,0,0]
[null,null,null,null,0,0]
[null,null,null,null,0,0]
[null,null,null,null,0,0]
[null,null,null,null,0,0]
[null,null,null,null,0,0]
[null,null,null,null,0,0]
[null,null,null,null,0,0]
[null,null,null,null,0,0]
[null,null,null,null,0,0]
[null,null,null,null,0,0]
[null,null,null,null,0,0]
[null,null,null,null,{"$f":"40/100*D872","v":0},{"$f":"E872+D872","v":0}]
[null,null,null,null,0,0]
[null,null,null,null,0,0]
[null,null,null,null,0,0]
[null,null,null,null,0,0]
[null,null,null,null,0,0]
[null,null,null,null,0,0]
[null,null,null,null,0,0]
[null,null,null,null,0,0]
[null,null,null,null,0,0]
[null,null,null,null,0,0]
[null,null,null,null,0,0]
[null,null,null,null,0,0]
[null,null,null,null,0,0]
[null,null,null,null,0,0]
[null,null,null,null,0,0]
[null,null,null,null,0,0]
[null,null,null,null,0,0]
[null,null,null,null,0,0]
[null,null,null,null,0,0]
[null,null,null,null,0,0]
[null,null,null,null,0,0]
[null,null,null,null,0,0]
[null,null,null,null,0,0]
[null,null,null,null,0,0]
[null,null,null,null,0,0]
[null,null,null,null,0,0]
[null,null,null,null,0,0]
[null,null,null,null,0,0]
[null,null,null,null,0,0]
[null,null,null,null,0,0]
[null,null,null,null,0,0]
[null,null,null,null,0,0]
[null,null,null,null,0,0]
[null,null,null,null,0,0]
[null,null,null,null,0,0]
[null,null,null,null,0,0]
[null,null,null,null,0,0]
[null,null,null,null,0,0]
[null,null,null,null,0,0]
[null,null,null,null,0,0]
[null,null,null,null,0,0]
[null,null,null,null,0,0]
[null,null,null,null,0,0]
[null,null,null,null,0,0]
[null,null,null,null,0,0]
[null,null,null,null,0,0]
[null,null,null,null,0,0]
[null,null,null,null,0,0]
[null,null,null,null,0,0]
[null,null,null,null,0,0]
[null,null,null,null,0,0]
[null,null,null,null,0,0]
[null,null,null,null,0,0]
[null,null,null,null,0,0]
[null,null,null,null,0,0]
[null,null,null,null,0,0]
[null,null,null,null,0,0]
[null,null,null,null,0,0]
[null,null,null,null,0,0]
[null,null,null,null,0,0]
[null,null,null,null,0,0]
[null,null,null,null,0,0]
[null,null,null,null,0,0]
[null,null,null,null,{"$f":"40/100*D936","v":0},{"$f":"E936+D936","v":0}]
[null,null,null,null,0,0]
[null,null,null,null,0,0]
[null,null,null,null,0,0]
[null,null,null,null,0,0]
[null,null,null,null,0,0]
[null,null,null,null,0,0]
[null,null,null,null,0,0]
[null,null,null,null,0,0]
[null,null,null,null,0,0]
[null,null,null,null,0,0]
[null,null,null,null,0,0]
[null,null,null,null,0,0]
[null,null,null,null,0,0]
[null,null,null,null,0,0]
[null,null,null,null,0,0]
[null,null,null,null,0,0]
[null,null,null,null,0,0]
[null,null,null,null,0,0]
[null,null,null,null,0,0]
[null,null,null,null,0,0]
[null,null,null,null,0,0]
[null,null,null,null,0,0]
[null,null,null,null,0,0]
[null,null,null,null,0,0]
[null,null,null,null,0,0]
[null,null,null,null,0,0]
[null,null,null,null,0,0]
[null,null,null,null,0,0]
[null,null,null,null,0,0]
[null,null,null,null,0,0]
[null,null,null,null,0,0]
[null,null,null,null,0,0]
[null,null,null,null,0,0]
[null,null,null,null,0,0]
[null,null,null,null,0,0]
[null,null,null,null,0,0]
[null,null,null,null,0,0]
[null,null,null,null,0,0]
[null,null,null,null,0,0]
[null,null,null,null,0,0]
[null,null,null,null,0,0]
[null,null,null,null,0,0]
[null,null,null,null,0,0]
[null,null,null,null,0,0]
[null,null,null,null,0,0]
[null,null,null,null,0,0]
[null,null,null,null,0,0]
[null,null,null,null,0,0]
[null,null,null,null,0,0]
[null,null,null,null,0,0]
[null,null,null,null,0,0]
[null,null,null,null,0,0]
[null,null,null,null,0,0]
[null,null,null,null,0,0]
[null,null,null,null,0,0]
[null,null,null,null,0,0]
[null,null,null,null,0,0]
[null,null,null,null,0,0]
[null,null,null,null,0,0]
[null,null,null,null,0,0]
[null,null,null,null,0,0]
[null,null,null,null,0,0]
[null,null,null,null,0,0]
[null,null,null,null,{"$f":"40/100*D1000","v":0},{"$f":"E1000+D1000","v":0}]
[null,null,null,null,0,0]
[null,null,null,null,0,0]
[null,null,null,null,0,0]
[null,null,null,null,0,0]
[null,null,null,null,0,0]
[null,null,null,null,0,0]
[null,null,null,null,0,0]
[null,null,null,null,0,0]
[null,null,null,null,0,0]
[null,null,null,null,0,0]
[null,null,null,null,0,0]
[null,null,null,null,0,0]
[null,null,null,null,0,0]
[null,null,null,null,0,0]
[null,null,null,null,0,0]
[null,null,null,null,0,0]
[null,null,null,null,0,0]
[null,null,null,null,0,0]
[null,null,null,null,0,0]
[null,null,null,null,0,0]
[null,null,null,null,0,0]
[null,null,null,null,0,0]
[null,null,null,null,0,0]
[null,null,null,null,0,0]
[null,null,null,null,0,0]
[null,null,null,null,0,0]
[null,null,null,null,0,0]
[null,null,null,null,0,0]
[null,null,null,null,0,0]
[null,null,null,null,0,0]
[null,null,null,null,0,0]
[null,null,null,null,0,0]
[null,null,null,null,0,0]
[null,null,null,null,0,0]
[null,null,null,null,0,0]
[null,null,null,null,0,0]
[null,null,null,null,0,0]
[null,null,null,null,0,0]
[null,null,null,null,0,0]
[null,null,null,null,0,0]
[null,null,null,null,0,0]
[null,null,null,null,0,0]
[null,null,null,null,0,0]
[null,null,null,null,0,0]
[null,null,null,null,0,0]
[null,null,null,null,0,0]
[null,null,null,null,0,0]
[null,null,null,null,0,0]
[null,null,null,null,0,0]
[null,null,null,null,0,0]
[null,null,null,null,0,0]
[null,null,null,null,0,0]
[null,null,null,null,0,0]
[null,null,null,null,0,0]
[null,null,null,null,0,0]
[null,null,null,null,0,0]
[null,null,null,null,0,0]
[null,null,null,null,0,0]
[null,null,null,null,0,0]
[null,null,null,null,0,0]
[null,null,null,null,0,0]
[null,null,null,null,0,0]
[null,null,null,null,0,0]
[null,null,null,null,{"$f":"40/100*D1064","v":0},{"$f":"E1064+D1064","v":0}]
[null,null,null,null,0,0]
[null,null,null,null,0,0]
[null,null,null,null,0,0]
[null,null,null,null,0,0]
[null,null,null,null,0,0]
[null,null,null,null,0,0]
[null,null,null,null,0,0]
[null,null,null,null,0,0]
[null,null,null,null,0,0]
[null,null,null,null,0,0]
[null,null,null,null,0,0]
[null,null,null,null,0,0]
[null,null,null,null,0,0]
[null,null,null,null,0,0]
[null,null,null,null,0,0]
[null,null,null,null,0,0]
[null,null,null,null,0,0]
[null,null,null,null,0,0]
[null,null,null,null,0,0]
[null,null,null,null,0,0]
[null,null,null,null,0,0]
[null,null,null,null,0,0]
[null,null,null,null,0,0]
[null,null,null,null,0,0]
[null,null,null,null,0,0]
[null,null,null,null,0,0]
[null,null,null,null,0,0]
[null,null,null,null,0,0]
[null,null,null,null,0,0]
[null,null,null,null,0,0]
[null,null,null,null,0,0]
[null,null,null,null,0,0]
[null,null,null,null,0,0]
[null,null,null,null,0,0]
[null,null,null,null,0,0]
[null,null,null,null,0,0]
[null,null,null,null,0,0]
[null,null,null,null,0,0]
[null,null,null,null,0,0]
[null,null,null,null,0,0]
[null,null,null,null,0,0]
[null,null,null,null,0,0]
[null,null,null,null,0,0]
[null,null,null,null,0,0]
[null,null,null,null,0,0]
[null,null,null,null,0,0]
[null,null,null,null,0,0]
[null,null,null,null,0,0]
[null,null,null,null,0,0]
[null,null,null,null,0,0]
[null,null,null,null,0,0]
[null,null,null,null,0,0]
[null,null,null,null,0,0]
[null,null,null,null,0,0]
[null,null,null,null,0,0]
[null,null,null,null,0,0]
[null,null,null,null,0,0]
[null,null,null,null,0,0]
[null,null,null,null,0,0]
[null,null,null,null,0,0]
[null,null,null,null,0,0]
[null,null,null,null,0,0]
[null,null,null,null,0,0]
[null,null,null,null,{"$f":"40/100*D1128","v":0},{"$f":"E1128+D1128","v":0}]
[null,null,null,null,0,0]
[null,null,null,null,0,0]
[null,null,null,null,0,0]
[null,null,null,null,0,0]
[null,null,null,null,0,0]
[null,null,null,null,0,0]
[null,null,null,null,0,0]
[null,null,null,null,0,0]
[null,null,null,null,0,0]
[null,null,null,null,0,0]
[null,null,null,null,0,0]
[null,null,null,null,0,0]
[null,null,null,null,0,0]
[null,null,null,null,0,0]
[null,null,null,null,0,0]
[null,null,null,null,0,0]
[null,null,null,null,0,0]
[null,null,null,null,0,0]
[null,null,null,null,0,0]
[null,null,null,null,0,0]
[null,null,null,null,0,0]
[null,null,null,null,0,0]
[null,null,null,null,0,0]
[null,null,null,null,0,0]
[null,null,null,null,0,0]
[null,null,null,null,0,0]
[null,null,null,null,0,0]
[null,null,null,null,0,0]
[null,null,null,null,0,0]
[null,null,null,null,0,0]
[null,null,null,null,0,0]
[null,null,null,null,0,0]
[null,null,null,null,0,0]
[null,null,null,null,0,0]
[null,null,null,null,0,0]
[null,null,null,null,0,0]
[null,null,null,null,0,0]
[null,null,null,null,0,0]
[null,null,null,null,0,0]
[null,null,null,null,0,0]
[null,null,null,null,0,0]
[null,null,null,null,0,0]
[null,null,null,null,0,0]
[null,null,null,null,0,0]
[null,null,null,null,0,0]
[null,null,null,null,0,0]
[null,null,null,null,0,0]
[null,null,null,null,0,0]
[null,null,null,null,0,0]
[null,null,null,null,0,0]
[null,null,null,null,0,0]
[null,null,null,null,0,0]
[null,null,null,null,0,0]
[null,null,null,null,0,0]
[null,null,null,null,0,0]
[null,null,null,null,0,0]
[null,null,null,null,0,0]
[null,null,null,null,0,0]
[null,null,null,null,0,0]
[null,null,null,null,0,0]
[null,null,null,null,0,0]
[null,null,null,null,0,0]
[null,null,null,null,0,0]
[null,null,null,null,{"$f":"40/100*D1192","v":0},{"$f":"E1192+D1192","v":0}]
[null,null,null,null,0,0]
[null,null,null,null,0,0]
[null,null,null,null,0,0]
[null,null,null,null,0,0]
[null,null,null,null,0,0]
[null,null,null,null,0,0]
[null,null,null,null,0,0]
[null,null,null,null,0,0]
[null,null,null,null,0,0]
[null,null,null,null,0,0]
[null,null,null,null,0,0]
[null,null,null,null,0,0]
[null,null,null,null,0,0]
[null,null,null,null,0,0]
[null,null,null,null,0,0]
[null,null,null,null,0,0]
[null,null,null,null,0,0]
[null,null,null,null,0,0]
[null,null,null,null,0,0]
[null,null,null,null,0,0]
[null,null,null,null,0,0]
[null,null,null,null,0,0]
[null,null,null,null,0,0]
[null,null,null,null,0,0]
[null,null,null,null,0,0]
[null,null,null,null,0,0]
[null,null,null,null,0,0]
[null,null,null,null,0,0]
[null,null,null,null,0,0]
[null,null,null,null,0,0]
[null,null,null,null,0,0]
[null,null,null,null,0,0]
[null,null,null,null,0,0]
[null,null,null,null,0,0]
[null,null,null,null,0,0]
[null,null,null,null,0,0]
[null,null,null,null,0,0]
[null,null,null,null,0,0]
[null,null,null,null,0,0]
[null,null,null,null,0,0]
[null,null,null,null,0,0]
[null,null,null,null,0,0]
[null,null,null,null,0,0]
[null,null,null,null,0,0]
[null,null,null,null,0,0]
[null,null,null,null,0,0]
[null,null,null,null,0,0]
[null,null,null,null,0,0]
[null,null,null,null,0,0]
[null,null,null,null,0,0]
[null,null,null,null,0,0]
[null,null,null,null,0,0]
[null,null,null,null,0,0]

{"sheet":"Sheet3","index":2,"n_rows":1281,"n_cols":6,"rows_kept":1281,"cut":false,"hidden":false,"merged":[]}
["الكود","الصنف","العدد","س1","ن","السعر"]
[1549,"ماسا",4,190,{"$f":"30/100*D2","v":57},{"$f":"D2+E2","v":247}]
[1534,"ماسا",1,175,{"$f":"30/100*D3","v":52.5},{"$f":"D3+E3","v":227.5}]
[2150,"الجوهره",3,180,54,234]
[2080,"ديما",1,180,54,234]
[4350,"بسمه",1,317,95.1,412.1]
[804,"لورينا",1,200,60,260]
[2105,"جي ام",2,190,57,247]
[2411,"جي ام",3,180,54,234]
[4327,"بسمه",1,270,81,351]
[1522,"ماسا",1,270,81,351]
[1507,"ماسا",1,269,80.7,349.7]
[5586,"بسمه",1,270,81,351]
[4317,"بسمه",1,310,93,403]
[201,"شيماء",1,200,60,260]
[60069,"شيماء",1,185,55.5,240.5]
[60048,"شيماء",1,185,55.5,240.5]
[70022,"شيماء",1,200,60,260]
[60016,"شيماء",1,185,55.5,240.5]
[60030,"شيماء",1,185,55.5,240.5]
[7711,"ديفا رحمه",2,120,36,156]
[800,"ندا جروب",1,155,46.5,201.5]
[6255,"ذا بست",1,150,45,195]
[128,"هابي لف ش",1,180,54,234]
[8578,"برموده جي ام ",1,140,42,182]
[418,"برموده جي ام ",1,150,45,195]
[573,"مس جنا",1,150,45,195]
[1102,"مس جنا",1,135,40.5,175.5]
[544,"مس جنا",1,135,40.5,175.5]
[125,"روتانه ",1,80,24,104]
[780,"البرنسيسه",1,70,21,91]
[743,"جولدن",1,125,37.5,162.5]
[96,"هابي لف",1,140,42,182]
[101,"هابي لف",1,145,43.5,188.5]
[93,"دي ام",1,125,37.5,162.5]
[116,"روتانا",1,100,30,130]
[936,"مس جنا",1,145,43.5,188.5]
[982,"مس جنا",1,140,42,182]
[5281,"ماسا خريفي",1,155,46.5,201.5]
["5278-5271","ماسا خريفي",1,180,54,234]
["5299-5288","ماسا خريفي",2,180,54,234]
[125,"هابي لف",1,130,39,169]
[33424,"تركي",1,115,34.5,149.5]
[106,"هابي لف",1,115,34.5,149.5]
[23105,"تركي",1,100,30,130]
[1822,"جوجو",2,105,31.5,136.5]
[2076,"كتاكيت",1,175,52.5,227.5]
[10005,"فيوليت",1,170,51,221]
[126,"لولي بوب",1,165,49.5,214.5]
[969,"مس جنا",1,160,48,208]
[108,"هابي لف",1,130,39,169]
[null,null,null,null,0,0]
[null,null,null,null,0,0]
[null,null,null,null,0,0]
[null,null,null,null,0,0]
[null,null,null,null,0,0]
[null,null,null,null,0,0]
[null,null,null,null,0,0]
[null,null,null,null,0,0]
[null,null,null,null,0,0]
[null,null,null,null,0,0]
[null,null,null,null,0,0]
[null,null,null,null,0,0]
[null,null,null,null,0,0]
[null,null,null,null,0,0]
[null,null,null,null,0,0]
[null,null,null,null,{"$f":"30/100*D67","v":0},{"$f":"D67+E67","v":0}]
[null,null,null,null,0,0]
[null,null,null,null,0,0]
[null,null,null,null,0,0]
[null,null,null,null,0,0]
[null,null,null,null,0,0]
[null,null,null,null,0,0]
[null,null,null,null,0,0]
[null,null,null,null,0,0]
[null,null,null,null,0,0]
[null,null,null,null,0,0]
[null,null,null,null,0,0]
[null,null,null,null,0,0]
[null,null,null,null,0,0]
[null,null,null,null,0,0]
[null,null,null,null,0,0]
[null,null,null,null,0,0]
[null,null,null,null,0,0]
[null,null,null,null,0,0]
[null,null,null,null,0,0]
[null,null,null,null,0,0]
[null,null,null,null,0,0]
[null,null,null,null,0,0]
[null,null,null,null,0,0]
[null,null,null,null,0,0]
[null,null,null,null,0,0]
[null,null,null,null,0,0]
[null,null,null,null,0,0]
[null,null,null,null,0,0]
[null,null,null,null,0,0]
[null,null,null,null,0,0]
[null,null,null,null,0,0]
[null,null,null,null,0,0]
[null,null,null,null,0,0]
[null,null,null,null,0,0]
[null,null,null,null,0,0]
[null,null,null,null,0,0]
[null,null,null,null,0,0]
[null,null,null,null,0,0]
[null,null,null,null,0,0]
[null,null,null,null,0,0]
[null,null,null,null,0,0]
[null,null,null,null,0,0]
[null,null,null,null,0,0]
[null,null,null,null,0,0]
[null,null,null,null,0,0]
[null,null,null,null,0,0]
[null,null,null,null,0,0]
[null,null,null,null,0,0]
[null,null,null,null,0,0]
[null,null,null,null,0,0]
[null,null,null,null,0,0]
[null,null,null,null,0,0]
[null,null,null,null,0,0]
[null,null,null,null,0,0]
[null,null,null,null,0,0]
[null,null,null,null,0,0]
[null,null,null,null,0,0]
[null,null,null,null,0,0]
[null,null,null,null,0,0]
[null,null,null,null,0,0]
[null,null,null,null,0,0]
[null,null,null,null,0,0]
[null,null,null,null,0,0]
[null,null,null,null,{"$f":"30/100*D131","v":0},{"$f":"D131+E131","v":0}]
[null,null,null,null,0,0]
[null,null,null,null,0,0]
[null,null,null,null,0,0]
[null,null,null,null,0,0]
[null,null,null,null,0,0]
[null,null,null,null,0,0]
[null,null,null,null,0,0]
[null,null,null,null,0,0]
[null,null,null,null,0,0]
[null,null,null,null,0,0]
[null,null,null,null,0,0]
[null,null,null,null,0,0]
[null,null,null,null,0,0]
[null,null,null,null,0,0]
[null,null,null,null,0,0]
[null,null,null,null,0,0]
[null,null,null,null,0,0]
[null,null,null,null,0,0]
[null,null,null,null,0,0]
[null,null,null,null,0,0]
[null,null,null,null,0,0]
[null,null,null,null,0,0]
[null,null,null,null,0,0]
[null,null,null,null,0,0]
[null,null,null,null,0,0]
[null,null,null,null,0,0]
[null,null,null,null,0,0]
[null,null,null,null,0,0]
[null,null,null,null,0,0]
[null,null,null,null,0,0]
[null,null,null,null,0,0]
[null,null,null,null,0,0]
[null,null,null,null,0,0]
[null,null,null,null,0,0]
[null,null,null,null,0,0]
[null,null,null,null,0,0]
[null,null,null,null,0,0]
[null,null,null,null,0,0]
[null,null,null,null,0,0]
[null,null,null,null,0,0]
[null,null,null,null,0,0]
[null,null,null,null,0,0]
[null,null,null,null,0,0]
[null,null,null,null,0,0]
[null,null,null,null,0,0]
[null,null,null,null,0,0]
[null,null,null,null,0,0]
[null,null,null,null,0,0]
[null,null,null,null,0,0]
[null,null,null,null,0,0]
[null,null,null,null,0,0]
[null,null,null,null,0,0]
[null,null,null,null,0,0]
[null,null,null,null,0,0]
[null,null,null,null,0,0]
[null,null,null,null,0,0]
[null,null,null,null,0,0]
[null,null,null,null,0,0]
[null,null,null,null,0,0]
[null,null,null,null,0,0]
[null,null,null,null,0,0]
[null,null,null,null,0,0]
[null,null,null,null,0,0]
[null,null,null,null,{"$f":"30/100*D195","v":0},{"$f":"D195+E195","v":0}]
[null,null,null,null,0,0]
[null,null,null,null,0,0]
[null,null,null,null,0,0]
[null,null,null,null,0,0]
[null,null,null,null,0,0]
[null,null,null,null,0,0]
[null,null,null,null,0,0]
[null,null,null,null,0,0]
[null,null,null,null,0,0]
[null,null,null,null,0,0]
[null,null,null,null,0,0]
[null,null,null,null,0,0]
[null,null,null,null,0,0]
[null,null,null,null,0,0]
[null,null,null,null,0,0]
[null,null,null,null,0,0]
[null,null,null,null,0,0]
[null,null,null,null,0,0]
[null,null,null,null,0,0]
[null,null,null,null,0,0]
[null,null,null,null,0,0]
[null,null,null,null,0,0]
[null,null,null,null,0,0]
[null,null,null,null,0,0]
[null,null,null,null,0,0]
[null,null,null,null,0,0]
[null,null,null,null,0,0]
[null,null,null,null,0,0]
[null,null,null,null,0,0]
[null,null,null,null,0,0]
[null,null,null,null,0,0]
[null,null,null,null,0,0]
[null,null,null,null,0,0]
[null,null,null,null,0,0]
[null,null,null,null,0,0]
[null,null,null,null,0,0]
[null,null,null,null,0,0]
[null,null,null,null,0,0]
[null,null,null,null,0,0]
[null,null,null,null,0,0]
[null,null,null,null,0,0]
[null,null,null,null,0,0]
[null,null,null,null,0,0]
[null,null,null,null,0,0]
[null,null,null,null,0,0]
[null,null,null,null,0,0]
[null,null,null,null,0,0]
[null,null,null,null,0,0]
[null,null,null,null,0,0]
[null,null,null,null,0,0]
[null,null,null,null,0,0]
[null,null,null,null,0,0]
[null,null,null,null,0,0]
[null,null,null,null,0,0]
[null,null,null,null,0,0]
[null,null,null,null,0,0]
[null,null,null,null,0,0]
[null,null,null,null,0,0]
[null,null,null,null,0,0]
[null,null,null,null,0,0]
[null,null,null,null,0,0]
[null,null,null,null,0,0]
[null,null,null,null,0,0]
[null,null,null,null,{"$f":"30/100*D259","v":0},{"$f":"D259+E259","v":0}]
[null,null,null,null,0,0]
[null,null,null,null,0,0]
[null,null,null,null,0,0]
[null,null,null,null,0,0]
[null,null,null,null,0,0]
[null,null,null,null,0,0]
[null,null,null,null,0,0]
[null,null,null,null,0,0]
[null,null,null,null,0,0]
[null,null,null,null,0,0]
[null,null,null,null,0,0]
[null,null,null,null,0,0]
[null,null,null,null,0,0]
[null,null,null,null,0,0]
[null,null,null,null,0,0]
[null,null,null,null,0,0]
[null,null,null,null,0,0]
[null,null,null,null,0,0]
[null,null,null,null,0,0]
[null,null,null,null,0,0]
[null,null,null,null,0,0]
[null,null,null,null,0,0]
[null,null,null,null,0,0]
[null,null,null,null,0,0]
[null,null,null,null,0,0]
[null,null,null,null,0,0]
[null,null,null,null,0,0]
[null,null,null,null,0,0]
[null,null,null,null,0,0]
[null,null,null,null,0,0]
[null,null,null,null,0,0]
[null,null,null,null,0,0]
[null,null,null,null,0,0]
[null,null,null,null,0,0]
[null,null,null,null,0,0]
[null,null,null,null,0,0]
[null,null,null,null,0,0]
[null,null,null,null,0,0]
[null,null,null,null,0,0]
[null,null,null,null,0,0]
[null,null,null,null,0,0]
[null,null,null,null,0,0]
[null,null,null,null,0,0]
[null,null,null,null,0,0]
[null,null,null,null,0,0]
[null,null,null,null,0,0]
[null,null,null,null,0,0]
[null,null,null,null,0,0]
[null,null,null,null,0,0]
[null,null,null,null,0,0]
[null,null,null,null,0,0]
[null,null,null,null,0,0]
[null,null,null,null,0,0]
[null,null,null,null,0,0]
[null,null,null,null,0,0]
[null,null,null,null,0,0]
[null,null,null,null,0,0]
[null,null,null,null,0,0]
[null,null,null,null,0,0]
[null,null,null,null,0,0]
[null,null,null,null,0,0]
[null,null,null,null,0,0]
[null,null,null,null,0,0]
[null,null,null,null,{"$f":"30/100*D323","v":0},{"$f":"D323+E323","v":0}]
[null,null,null,null,0,0]
[null,null,null,null,0,0]
[null,null,null,null,0,0]
[null,null,null,null,0,0]
[null,null,null,null,0,0]
[null,null,null,null,0,0]
[null,null,null,null,0,0]
[null,null,null,null,0,0]
[null,null,null,null,0,0]
[null,null,null,null,0,0]
[null,null,null,null,0,0]
[null,null,null,null,0,0]
[null,null,null,null,0,0]
[null,null,null,null,0,0]
[null,null,null,null,0,0]
[null,null,null,null,0,0]
[null,null,null,null,0,0]
[null,null,null,null,0,0]
[null,null,null,null,0,0]
[null,null,null,null,0,0]
[null,null,null,null,0,0]
[null,null,null,null,0,0]
[null,null,null,null,0,0]
[null,null,null,null,0,0]
[null,null,null,null,0,0]
[null,null,null,null,0,0]
[null,null,null,null,0,0]
[null,null,null,null,0,0]
[null,null,null,null,0,0]
[null,null,null,null,0,0]
[null,null,null,null,0,0]
[null,null,null,null,0,0]
[null,null,null,null,0,0]
[null,null,null,null,0,0]
[null,null,null,null,0,0]
[null,null,null,null,0,0]
[null,null,null,null,0,0]
[null,null,null,null,0,0]
[null,null,null,null,0,0]
[null,null,null,null,0,0]
[null,null,null,null,0,0]
[null,null,null,null,0,0]
[null,null,null,null,0,0]
[null,null,null,null,0,0]
[null,null,null,null,0,0]
[null,null,null,null,0,0]
[null,null,null,null,0,0]
[null,null,null,null,0,0]
[null,null,null,null,0,0]
[null,null,null,null,0,0]
[null,null,null,null,0,0]
[null,null,null,null,0,0]
[null,null,null,null,0,0]
[null,null,null,null,0,0]
[null,null,null,null,0,0]
[null,null,null,null,0,0]
[null,null,null,null,0,0]
[null,null,null,null,0,0]
[null,null,null,null,0,0]
[null,null,null,null,0,0]
[null,null,null,null,0,0]
[null,null,null,null,0,0]
[null,null,null,null,0,0]
[null,null,null,null,{"$f":"30/100*D387","v":0},{"$f":"D387+E387","v":0}]
[null,null,null,null,0,0]
[null,null,null,null,0,0]
[null,null,null,null,0,0]
[null,null,null,null,0,0]
[null,null,null,null,0,0]
[null,null,null,null,0,0]
[null,null,null,null,0,0]
[null,null,null,null,0,0]
[null,null,null,null,0,0]
[null,null,null,null,0,0]
[null,null,null,null,0,0]
[null,null,null,null,0,0]
[null,null,null,null,0,0]
[null,null,null,null,0,0]
[null,null,null,null,0,0]
[null,null,null,null,0,0]
[null,null,null,null,0,0]
[null,null,null,null,0,0]
[null,null,null,null,0,0]
[null,null,null,null,0,0]
[null,null,null,null,0,0]
[null,null,null,null,0,0]
[null,null,null,null,0,0]
[null,null,null,null,0,0]
[null,null,null,null,0,0]
[null,null,null,null,0,0]
[null,null,null,null,0,0]
[null,null,null,null,0,0]
[null,null,null,null,0,0]
[null,null,null,null,0,0]
[null,null,null,null,0,0]
[null,null,null,null,0,0]
[null,null,null,null,0,0]
[null,null,null,null,0,0]
[null,null,null,null,0,0]
[null,null,null,null,0,0]
[null,null,null,null,0,0]
[null,null,null,null,0,0]
[null,null,null,null,0,0]
[null,null,null,null,0,0]
[null,null,null,null,0,0]
[null,null,null,null,0,0]
[null,null,null,null,0,0]
[null,null,null,null,0,0]
[null,null,null,null,0,0]
[null,null,null,null,0,0]
[null,null,null,null,0,0]
[null,null,null,null,0,0]
[null,null,null,null,0,0]
[null,null,null,null,0,0]
[null,null,null,null,0,0]
[null,null,null,null,0,0]
[null,null,null,null,0,0]
[null,null,null,null,0,0]
[null,null,null,null,0,0]
[null,null,null,null,0,0]
[null,null,null,null,0,0]
[null,null,null,null,0,0]
[null,null,null,null,0,0]
[null,null,null,null,0,0]
[null,null,null,null,0,0]
[null,null,null,null,0,0]
[null,null,null,null,0,0]
[null,null,null,null,{"$f":"30/100*D451","v":0},{"$f":"D451+E451","v":0}]
[null,null,null,null,0,0]
[null,null,null,null,0,0]
[null,null,null,null,0,0]
[null,null,null,null,0,0]
[null,null,null,null,0,0]
[null,null,null,null,0,0]
[null,null,null,null,0,0]
[null,null,null,null,0,0]
[null,null,null,null,0,0]
[null,null,null,null,0,0]
[null,null,null,null,0,0]
[null,null,null,null,0,0]
[null,null,null,null,0,0]
[null,null,null,null,0,0]
[null,null,null,null,0,0]
[null,null,null,null,0,0]
[null,null,null,null,0,0]
[null,null,null,null,0,0]
[null,null,null,null,0,0]
[null,null,null,null,0,0]
[null,null,null,null,0,0]
[null,null,null,null,0,0]
[null,null,null,null,0,0]
[null,null,null,null,0,0]
[null,null,null,null,0,0]
[null,null,null,null,0,0]
[null,null,null,null,0,0]
[null,null,null,null,0,0]
[null,null,null,null,0,0]
[null,null,null,null,0,0]
[null,null,null,null,0,0]
[null,null,null,null,0,0]
[null,null,null,null,0,0]
[null,null,null,null,0,0]
[null,null,null,null,0,0]
[null,null,null,null,0,0]
[null,null,null,null,0,0]
[null,null,null,null,0,0]
[null,null,null,null,0,0]
[null,null,null,null,0,0]
[null,null,null,null,0,0]
[null,null,null,null,0,0]
[null,null,null,null,0,0]
[null,null,null,null,0,0]
[null,null,null,null,0,0]
[null,null,null,null,0,0]
[null,null,null,null,0,0]
[null,null,null,null,0,0]
[null,null,null,null,0,0]
[null,null,null,null,0,0]
[null,null,null,null,0,0]
[null,null,null,null,0,0]
[null,null,null,null,0,0]
[null,null,null,null,0,0]
[null,null,null,null,0,0]
[null,null,null,null,0,0]
[null,null,null,null,0,0]
[null,null,null,null,0,0]
[null,null,null,null,0,0]
[null,null,null,null,0,0]
[null,null,null,null,0,0]
[null,null,null,null,0,0]
[null,null,null,null,0,0]
[null,null,null,null,{"$f":"30/100*D515","v":0},{"$f":"D515+E515","v":0}]
[null,null,null,null,0,0]
[null,null,null,null,0,0]
[null,null,null,null,0,0]
[null,null,null,null,0,0]
[null,null,null,null,0,0]
[null,null,null,null,0,0]
[null,null,null,null,0,0]
[null,null,null,null,0,0]
[null,null,null,null,0,0]
[null,null,null,null,0,0]
[null,null,null,null,0,0]
[null,null,null,null,0,0]
[null,null,null,null,0,0]
[null,null,null,null,0,0]
[null,null,null,null,0,0]
[null,null,null,null,0,0]
[null,null,null,null,0,0]
[null,null,null,null,0,0]
[null,null,null,null,0,0]
[null,null,null,null,0,0]
[null,null,null,null,0,0]
[null,null,null,null,0,0]
[null,null,null,null,0,0]
[null,null,null,null,0,0]
[null,null,null,null,0,0]
[null,null,null,null,0,0]
[null,null,null,null,0,0]
[null,null,null,null,0,0]
[null,null,null,null,0,0]
[null,null,null,null,0,0]
[null,null,null,null,0,0]
[null,null,null,null,0,0]
[null,null,null,null,0,0]
[null,null,null,null,0,0]
[null,null,null,null,0,0]
[null,null,null,null,0,0]
[null,null,null,null,0,0]
[null,null,null,null,0,0]
[null,null,null,null,0,0]
[null,null,null,null,0,0]
[null,null,null,null,0,0]
[null,null,null,null,0,0]
[null,null,null,null,0,0]
[null,null,null,null,0,0]
[null,null,null,null,0,0]
[null,null,null,null,0,0]
[null,null,null,null,0,0]
[null,null,null,null,0,0]
[null,null,null,null,0,0]
[null,null,null,null,0,0]
[null,null,null,null,0,0]
[null,null,null,null,0,0]
[null,null,null,null,0,0]
[null,null,null,null,0,0]
[null,null,null,null,0,0]
[null,null,null,null,0,0]
[null,null,null,null,0,0]
[null,null,null,null,0,0]
[null,null,null,null,0,0]
[null,null,null,null,0,0]
[null,null,null,null,0,0]
[null,null,null,null,0,0]
[null,null,null,null,0,0]
[null,null,null,null,{"$f":"30/100*D579","v":0},{"$f":"D579+E579","v":0}]
[null,null,null,null,0,0]
[null,null,null,null,0,0]
[null,null,null,null,0,0]
[null,null,null,null,0,0]
[null,null,null,null,0,0]
[null,null,null,null,0,0]
[null,null,null,null,0,0]
[null,null,null,null,0,0]
[null,null,null,null,0,0]
[null,null,null,null,0,0]
[null,null,null,null,0,0]
[null,null,null,null,0,0]
[null,null,null,null,0,0]
[null,null,null,null,0,0]
[null,null,null,null,0,0]
[null,null,null,null,0,0]
[null,null,null,null,0,0]
[null,null,null,null,0,0]
[null,null,null,null,0,0]
[null,null,null,null,0,0]
[null,null,null,null,0,0]
[null,null,null,null,0,0]
[null,null,null,null,0,0]
[null,null,null,null,0,0]
[null,null,null,null,0,0]
[null,null,null,null,0,0]
[null,null,null,null,0,0]
[null,null,null,null,0,0]
[null,null,null,null,0,0]
[null,null,null,null,0,0]
[null,null,null,null,0,0]
[null,null,null,null,0,0]
[null,null,null,null,0,0]
[null,null,null,null,0,0]
[null,null,null,null,0,0]
[null,null,null,null,0,0]
[null,null,null,null,0,0]
[null,null,null,null,0,0]
[null,null,null,null,0,0]
[null,null,null,null,0,0]
[null,null,null,null,0,0]
[null,null,null,null,0,0]
[null,null,null,null,0,0]
[null,null,null,null,0,0]
[null,null,null,null,0,0]
[null,null,null,null,0,0]
[null,null,null,null,0,0]
[null,null,null,null,0,0]
[null,null,null,null,0,0]
[null,null,null,null,0,0]
[null,null,null,null,0,0]
[null,null,null,null,0,0]
[null,null,null,null,0,0]
[null,null,null,null,0,0]
[null,null,null,null,0,0]
[null,null,null,null,0,0]
[null,null,null,null,0,0]
[null,null,null,null,0,0]
[null,null,null,null,0,0]
[null,null,null,null,0,0]
[null,null,null,null,0,0]
[null,null,null,null,0,0]
[null,null,null,null,0,0]
[null,null,null,null,{"$f":"30/100*D643","v":0},{"$f":"D643+E643","v":0}]
[null,null,null,null,0,0]
[null,null,null,null,0,0]
[null,null,null,null,0,0]
[null,null,null,null,0,0]
[null,null,null,null,0,0]
[null,null,null,null,0,0]
[null,null,null,null,0,0]
[null,null,null,null,0,0]
[null,null,null,null,0,0]
[null,null,null,null,0,0]
[null,null,null,null,0,0]
[null,null,null,null,0,0]
[null,null,null,null,0,0]
[null,null,null,null,0,0]
[null,null,null,null,0,0]
[null,null,null,null,0,0]
[null,null,null,null,0,0]
[null,null,null,null,0,0]
[null,null,null,null,0,0]
[null,null,null,null,0,0]
[null,null,null,null,0,0]
[null,null,null,null,0,0]
[null,null,null,null,0,0]
[null,null,null,null,0,0]
[null,null,null,null,0,0]
[null,null,null,null,0,0]
[null,null,null,null,0,0]
[null,null,null,null,0,0]
[null,null,null,null,0,0]
[null,null,null,null,0,0]
[null,null,null,null,0,0]
[null,null,null,null,0,0]
[null,null,null,null,0,0]
[null,null,null,null,0,0]
[null,null,null,null,0,0]
[null,null,null,null,0,0]
[null,null,null,null,0,0]
[null,null,null,null,0,0]
[null,null,null,null,0,0]
[null,null,null,null,0,0]
[null,null,null,null,0,0]
[null,null,null,null,0,0]
[null,null,null,null,0,0]
[null,null,null,null,0,0]
[null,null,null,null,0,0]
[null,null,null,null,0,0]
[null,null,null,null,0,0]
[null,null,null,null,0,0]
[null,null,null,null,0,0]
[null,null,null,null,0,0]
[null,null,null,null,0,0]
[null,null,null,null,0,0]
[null,null,null,null,0,0]
[null,null,null,null,0,0]
[null,null,null,null,0,0]
[null,null,null,null,0,0]
[null,null,null,null,0,0]
[null,null,null,null,0,0]
[null,null,null,null,0,0]
[null,null,null,null,0,0]
[null,null,null,null,0,0]
[null,null,null,null,0,0]
[null,null,null,null,0,0]
[null,null,null,null,{"$f":"30/100*D707","v":0},{"$f":"D707+E707","v":0}]
[null,null,null,null,0,0]
[null,null,null,null,0,0]
[null,null,null,null,0,0]
[null,null,null,null,0,0]
[null,null,null,null,0,0]
[null,null,null,null,0,0]
[null,null,null,null,0,0]
[null,null,null,null,0,0]
[null,null,null,null,0,0]
[null,null,null,null,0,0]
[null,null,null,null,0,0]
[null,null,null,null,0,0]
[null,null,null,null,0,0]
[null,null,null,null,0,0]
[null,null,null,null,0,0]
[null,null,null,null,0,0]
[null,null,null,null,0,0]
[null,null,null,null,0,0]
[null,null,null,null,0,0]
[null,null,null,null,0,0]
[null,null,null,null,0,0]
[null,null,null,null,0,0]
[null,null,null,null,0,0]
[null,null,null,null,0,0]
[null,null,null,null,0,0]
[null,null,null,null,0,0]
[null,null,null,null,0,0]
[null,null,null,null,0,0]
[null,null,null,null,0,0]
[null,null,null,null,0,0]
[null,null,null,null,0,0]
[null,null,null,null,0,0]
[null,null,null,null,0,0]
[null,null,null,null,0,0]
[null,null,null,null,0,0]
[null,null,null,null,0,0]
[null,null,null,null,0,0]
[null,null,null,null,0,0]
[null,null,null,null,0,0]
[null,null,null,null,0,0]
[null,null,null,null,0,0]
[null,null,null,null,0,0]
[null,null,null,null,0,0]
[null,null,null,null,0,0]
[null,null,null,null,0,0]
[null,null,null,null,0,0]
[null,null,null,null,0,0]
[null,null,null,null,0,0]
[null,null,null,null,0,0]
[null,null,null,null,0,0]
[null,null,null,null,0,0]
[null,null,null,null,0,0]
[null,null,null,null,0,0]
[null,null,null,null,0,0]
[null,null,null,null,0,0]
[null,null,null,null,0,0]
[null,null,null,null,0,0]
[null,null,null,null,0,0]
[null,null,null,null,0,0]
[null,null,null,null,0,0]
[null,null,null,null,0,0]
[null,null,null,null,0,0]
[null,null,null,null,0,0]
[null,null,null,null,{"$f":"30/100*D771","v":0},{"$f":"D771+E771","v":0}]
[null,null,null,null,0,0]
[null,null,null,null,0,0]
[null,null,null,null,0,0]
[null,null,null,null,0,0]
[null,null,null,null,0,0]
[null,null,null,null,0,0]
[null,null,null,null,0,0]
[null,null,null,null,0,0]
[null,null,null,null,0,0]
[null,null,null,null,0,0]
[null,null,null,null,0,0]
[null,null,null,null,0,0]
[null,null,null,null,0,0]
[null,null,null,null,0,0]
[null,null,null,null,0,0]
[null,null,null,null,0,0]
[null,null,null,null,0,0]
[null,null,null,null,0,0]
[null,null,null,null,0,0]
[null,null,null,null,0,0]
[null,null,null,null,0,0]
[null,null,null,null,0,0]
[null,null,null,null,0,0]
[null,null,null,null,0,0]
[null,null,null,null,0,0]
[null,null,null,null,0,0]
[null,null,null,null,0,0]
[null,null,null,null,0,0]
[null,null,null,null,0,0]
[null,null,null,null,0,0]
[null,null,null,null,0,0]
[null,null,null,null,0,0]
[null,null,null,null,0,0]
[null,null,null,null,0,0]
[null,null,null,null,0,0]
[null,null,null,null,0,0]
[null,null,null,null,0,0]
[null,null,null,null,0,0]
[null,null,null,null,0,0]
[null,null,null,null,0,0]
[null,null,null,null,0,0]
[null,null,null,null,0,0]
[null,null,null,null,0,0]
[null,null,null,null,0,0]
[null,null,null,null,0,0]
[null,null,null,null,0,0]
[null,null,null,null,0,0]
[null,null,null,null,0,0]
[null,null,null,null,0,0]
[null,null,null,null,0,0]
[null,null,null,null,0,0]
[null,null,null,null,0,0]
[null,null,null,null,0,0]
[null,null,null,null,0,0]
[null,null,null,null,0,0]
[null,null,null,null,0,0]
[null,null,null,null,0,0]
[null,null,null,null,0,0]
[null,null,null,null,0,0]
[null,null,null,null,0,0]
[null,null,null,null,0,0]
[null,null,null,null,0,0]
[null,null,null,null,0,0]
[null,null,null,null,{"$f":"30/100*D835","v":0},{"$f":"D835+E835","v":0}]
[null,null,null,null,0,0]
[null,null,null,null,0,0]
[null,null,null,null,0,0]
[null,null,null,null,0,0]
[null,null,null,null,0,0]
[null,null,null,null,0,0]
[null,null,null,null,0,0]
[null,null,null,null,0,0]
[null,null,null,null,0,0]
[null,null,null,null,0,0]
[null,null,null,null,0,0]
[null,null,null,null,0,0]
[null,null,null,null,0,0]
[null,null,null,null,0,0]
[null,null,null,null,0,0]
[null,null,null,null,0,0]
[null,null,null,null,0,0]
[null,null,null,null,0,0]
[null,null,null,null,0,0]
[null,null,null,null,0,0]
[null,null,null,null,0,0]
[null,null,null,null,0,0]
[null,null,null,null,0,0]
[null,null,null,null,0,0]
[null,null,null,null,0,0]
[null,null,null,null,0,0]
[null,null,null,null,0,0]
[null,null,null,null,0,0]
[null,null,null,null,0,0]
[null,null,null,null,0,0]
[null,null,null,null,0,0]
[null,null,null,null,0,0]
[null,null,null,null,0,0]
[null,null,null,null,0,0]
[null,null,null,null,0,0]
[null,null,null,null,0,0]
[null,null,null,null,0,0]
[null,null,null,null,0,0]
[null,null,null,null,0,0]
[null,null,null,null,0,0]
[null,null,null,null,0,0]
[null,null,null,null,0,0]
[null,null,null,null,0,0]
[null,null,null,null,0,0]
[null,null,null,null,0,0]
[null,null,null,null,0,0]
[null,null,null,null,0,0]
[null,null,null,null,0,0]
[null,null,null,null,0,0]
[null,null,null,null,0,0]
[null,null,null,null,0,0]
[null,null,null,null,0,0]
[null,null,null,null,0,0]
[null,null,null,null,0,0]
[null,null,null,null,0,0]
[null,null,null,null,0,0]
[null,null,null,null,0,0]
[null,null,null,null,0,0]
[null,null,null,null,0,0]
[null,null,null,null,0,0]
[null,null,null,null,0,0]
[null,null,null,null,0,0]
[null,null,null,null,0,0]
[null,null,null,null,{"$f":"30/100*D899","v":0},{"$f":"D899+E899","v":0}]
[null,null,null,null,0,0]
[null,null,null,null,0,0]
[null,null,null,null,0,0]
[null,null,null,null,0,0]
[null,null,null,null,0,0]
[null,null,null,null,0,0]
[null,null,null,null,0,0]
[null,null,null,null,0,0]
[null,null,null,null,0,0]
[null,null,null,null,0,0]
[null,null,null,null,0,0]
[null,null,null,null,0,0]
[null,null,null,null,0,0]
[null,null,null,null,0,0]
[null,null,null,null,0,0]
[null,null,null,null,0,0]
[null,null,null,null,0,0]
[null,null,null,null,0,0]
[null,null,null,null,0,0]
[null,null,null,null,0,0]
[null,null,null,null,0,0]
[null,null,null,null,0,0]
[null,null,null,null,0,0]
[null,null,null,null,0,0]
[null,null,null,null,0,0]
[null,null,null,null,0,0]
[null,null,null,null,0,0]
[null,null,null,null,0,0]
[null,null,null,null,0,0]
[null,null,null,null,0,0]
[null,null,null,null,0,0]
[null,null,null,null,0,0]
[null,null,null,null,0,0]
[null,null,null,null,0,0]
[null,null,null,null,0,0]
[null,null,null,null,0,0]
[null,null,null,null,0,0]
[null,null,null,null,0,0]
[null,null,null,null,0,0]
[null,null,null,null,0,0]
[null,null,null,null,0,0]
[null,null,null,null,0,0]
[null,null,null,null,0,0]
[null,null,null,null,0,0]
[null,null,null,null,0,0]
[null,null,null,null,0,0]
[null,null,null,null,0,0]
[null,null,null,null,0,0]
[null,null,null,null,0,0]
[null,null,null,null,0,0]
[null,null,null,null,0,0]
[null,null,null,null,0,0]
[null,null,null,null,0,0]
[null,null,null,null,0,0]
[null,null,null,null,0,0]
[null,null,null,null,0,0]
[null,null,null,null,0,0]
[null,null,null,null,0,0]
[null,null,null,null,0,0]
[null,null,null,null,0,0]
[null,null,null,null,0,0]
[null,null,null,null,0,0]
[null,null,null,null,0,0]
[null,null,null,null,{"$f":"30/100*D963","v":0},{"$f":"D963+E963","v":0}]
[null,null,null,null,0,0]
[null,null,null,null,0,0]
[null,null,null,null,0,0]
[null,null,null,null,0,0]
[null,null,null,null,0,0]
[null,null,null,null,0,0]
[null,null,null,null,0,0]
[null,null,null,null,0,0]
[null,null,null,null,0,0]
[null,null,null,null,0,0]
[null,null,null,null,0,0]
[null,null,null,null,0,0]
[null,null,null,null,0,0]
[null,null,null,null,0,0]
[null,null,null,null,0,0]
[null,null,null,null,0,0]
[null,null,null,null,0,0]
[null,null,null,null,0,0]
[null,null,null,null,0,0]
[null,null,null,null,0,0]
[null,null,null,null,0,0]
[null,null,null,null,0,0]
[null,null,null,null,0,0]
[null,null,null,null,0,0]
[null,null,null,null,0,0]
[null,null,null,null,0,0]
[null,null,null,null,0,0]
[null,null,null,null,0,0]
[null,null,null,null,0,0]
[null,null,null,null,0,0]
[null,null,null,null,0,0]
[null,null,null,null,0,0]
[null,null,null,null,0,0]
[null,null,null,null,0,0]
[null,null,null,null,0,0]
[null,null,null,null,0,0]
[null,null,null,null,0,0]
[null,null,null,null,0,0]
[null,null,null,null,0,0]
[null,null,null,null,0,0]
[null,null,null,null,0,0]
[null,null,null,null,0,0]
[null,null,null,null,0,0]
[null,null,null,null,0,0]
[null,null,null,null,0,0]
[null,null,null,null,0,0]
[null,null,null,null,0,0]
[null,null,null,null,0,0]
[null,null,null,null,0,0]
[null,null,null,null,0,0]
[null,null,null,null,0,0]
[null,null,null,null,0,0]
[null,null,null,null,0,0]
[null,null,null,null,0,0]
[null,null,null,null,0,0]
[null,null,null,null,0,0]
[null,null,null,null,0,0]
[null,null,null,null,0,0]
[null,null,null,null,0,0]
[null,null,null,null,0,0]
[null,null,null,null,0,0]
[null,null,null,null,0,0]
[null,null,null,null,0,0]
[null,null,null,null,{"$f":"30/100*D1027","v":0},{"$f":"D1027+E1027","v":0}]
[null,null,null,null,0,0]
[null,null,null,null,0,0]
[null,null,null,null,0,0]
[null,null,null,null,0,0]
[null,null,null,null,0,0]
[null,null,null,null,0,0]
[null,null,null,null,0,0]
[null,null,null,null,0,0]
[null,null,null,null,0,0]
[null,null,null,null,0,0]
[null,null,null,null,0,0]
[null,null,null,null,0,0]
[null,null,null,null,0,0]
[null,null,null,null,0,0]
[null,null,null,null,0,0]
[null,null,null,null,0,0]
[null,null,null,null,0,0]
[null,null,null,null,0,0]
[null,null,null,null,0,0]
[null,null,null,null,0,0]
[null,null,null,null,0,0]
[null,null,null,null,0,0]
[null,null,null,null,0,0]
[null,null,null,null,0,0]
[null,null,null,null,0,0]
[null,null,null,null,0,0]
[null,null,null,null,0,0]
[null,null,null,null,0,0]
[null,null,null,null,0,0]
[null,null,null,null,0,0]
[null,null,null,null,0,0]
[null,null,null,null,0,0]
[null,null,null,null,0,0]
[null,null,null,null,0,0]
[null,null,null,null,0,0]
[null,null,null,null,0,0]
[null,null,null,null,0,0]
[null,null,null,null,0,0]
[null,null,null,null,0,0]
[null,null,null,null,0,0]
[null,null,null,null,0,0]
[null,null,null,null,0,0]
[null,null,null,null,0,0]
[null,null,null,null,0,0]
[null,null,null,null,0,0]
[null,null,null,null,0,0]
[null,null,null,null,0,0]
[null,null,null,null,0,0]
[null,null,null,null,0,0]
[null,null,null,null,0,0]
[null,null,null,null,0,0]
[null,null,null,null,0,0]
[null,null,null,null,0,0]
[null,null,null,null,0,0]
[null,null,null,null,0,0]
[null,null,null,null,0,0]
[null,null,null,null,0,0]
[null,null,null,null,0,0]
[null,null,null,null,0,0]
[null,null,null,null,0,0]
[null,null,null,null,0,0]
[null,null,null,null,0,0]
[null,null,null,null,0,0]
[null,null,null,null,{"$f":"30/100*D1091","v":0},{"$f":"D1091+E1091","v":0}]
[null,null,null,null,0,0]
[null,null,null,null,0,0]
[null,null,null,null,0,0]
[null,null,null,null,0,0]
[null,null,null,null,0,0]
[null,null,null,null,0,0]
[null,null,null,null,0,0]
[null,null,null,null,0,0]
[null,null,null,null,0,0]
[null,null,null,null,0,0]
[null,null,null,null,0,0]
[null,null,null,null,0,0]
[null,null,null,null,0,0]
[null,null,null,null,0,0]
[null,null,null,null,0,0]
[null,null,null,null,0,0]
[null,null,null,null,0,0]
[null,null,null,null,0,0]
[null,null,null,null,0,0]
[null,null,null,null,0,0]
[null,null,null,null,0,0]
[null,null,null,null,0,0]
[null,null,null,null,0,0]
[null,null,null,null,0,0]
[null,null,null,null,0,0]
[null,null,null,null,0,0]
[null,null,null,null,0,0]
[null,null,null,null,0,0]
[null,null,null,null,0,0]
[null,null,null,null,0,0]
[null,null,null,null,0,0]
[null,null,null,null,0,0]
[null,null,null,null,0,0]
[null,null,null,null,0,0]
[null,null,null,null,0,0]
[null,null,null,null,0,0]
[null,null,null,null,0,0]
[null,null,null,null,0,0]
[null,null,null,null,0,0]
[null,null,null,null,0,0]
[null,null,null,null,0,0]
[null,null,null,null,0,0]
[null,null,null,null,0,0]
[null,null,null,null,0,0]
[null,null,null,null,0,0]
[null,null,null,null,0,0]
[null,null,null,null,0,0]
[null,null,null,null,0,0]
[null,null,null,null,0,0]
[null,null,null,null,0,0]
[null,null,null,null,0,0]
[null,null,null,null,0,0]
[null,null,null,null,0,0]
[null,null,null,null,0,0]
[null,null,null,null,0,0]
[null,null,null,null,0,0]
[null,null,null,null,0,0]
[null,null,null,null,0,0]
[null,null,null,null,0,0]
[null,null,null,null,0,0]
[null,null,null,null,0,0]
[null,null,null,null,0,0]
[null,null,null,null,0,0]
[null,null,null,null,{"$f":"30/100*D1155","v":0},{"$f":"D1155+E1155","v":0}]
[null,null,null,null,0,0]
[null,null,null,null,0,0]
[null,null,null,null,0,0]
[null,null,null,null,0,0]
[null,null,null,null,0,0]
[null,null,null,null,0,0]
[null,null,null,null,0,0]
[null,null,null,null,0,0]
[null,null,null,null,0,0]
[null,null,null,null,0,0]
[null,null,null,null,0,0]
[null,null,null,null,0,0]
[null,null,null,null,0,0]
[null,null,null,null,0,0]
[null,null,null,null,0,0]
[null,null,null,null,0,0]
[null,null,null,null,0,0]
[null,null,null,null,0,0]
[null,null,null,null,0,0]
[null,null,null,null,0,0]
[null,null,null,null,0,0]
[null,null,null,null,0,0]
[null,null,null,null,0,0]
[null,null,null,null,0,0]
[null,null,null,null,0,0]
[null,null,null,null,0,0]
[null,null,null,null,0,0]
[null,null,null,null,0,0]
[null,null,null,null,0,0]
[null,null,null,null,0,0]
[null,null,null,null,0,0]
[null,null,null,null,0,0]
[null,null,null,null,0,0]
[null,null,null,null,0,0]
[null,null,null,null,0,0]
[null,null,null,null,0,0]
[null,null,null,null,0,0]
[null,null,null,null,0,0]
[null,null,null,null,0,0]
[null,null,null,null,0,0]
[null,null,null,null,0,0]
[null,null,null,null,0,0]
[null,null,null,null,0,0]
[null,null,null,null,0,0]
[null,null,null,null,0,0]
[null,null,null,null,0,0]
[null,null,null,null,0,0]
[null,null,null,null,0,0]
[null,null,null,null,0,0]
[null,null,null,null,0,0]
[null,null,null,null,0,0]
[null,null,null,null,0,0]
[null,null,null,null,0,0]
[null,null,null,null,0,0]
[null,null,null,null,0,0]
[null,null,null,null,0,0]
[null,null,null,null,0,0]
[null,null,null,null,0,0]
[null,null,null,null,0,0]
[null,null,null,null,0,0]
[null,null,null,null,0,0]
[null,null,null,null,0,0]
[null,null,null,null,0,0]
[null,null,null,null,{"$f":"30/100*D1219","v":0},{"$f":"D1219+E1219","v":0}]
[null,null,null,null,0,0]
[null,null,null,null,0,0]
[null,null,null,null,0,0]
[null,null,null,null,0,0]
[null,null,null,null,0,0]
[null,null,null,null,0,0]
[null,null,null,null,0,0]
[null,null,null,null,0,0]
[null,null,null,null,0,0]
[null,null,null,null,0,0]
[null,null,null,null,0,0]
[null,null,null,null,0,0]
[null,null,null,null,0,0]
[null,null,null,null,0,0]
[null,null,null,null,0,0]
[null,null,null,null,0,0]
[null,null,null,null,0,0]
[null,null,null,null,0,0]
[null,null,null,null,0,0]
[null,null,null,null,0,0]
[null,null,null,null,0,0]
[null,null,null,null,0,0]
[null,null,null,null,0,0]
[null,null,null,null,0,0]
[null,null,null,null,0,0]
[null,null,null,null,0,0]
[null,null,null,null,0,0]
[null,null,null,null,0,0]
[null,null,null,null,0,0]
[null,null,null,null,0,0]
[null,null,null,null,0,0]
[null,null,null,null,0,0]
[null,null,null,null,0,0]
[null,null,null,null,0,0]
[null,null,null,null,0,0]
[null,null,null,null,0,0]
[null,null,null,null,0,0]
[null,null,null,null,0,0]
[null,null,null,null,0,0]
[null,null,null,null,0,0]
[null,null,null,null,0,0]
[null,null,null,null,0,0]
[null,null,null,null,0,0]
[null,null,null,null,0,0]
[null,null,null,null,0,0]
[null,null,null,null,0,0]
[null,null,null,null,0,0]
[null,null,null,null,0,0]
[null,null,null,null,0,0]
[null,null,null,null,0,0]
[null,null,null,null,0,0]
[null,null,null,null,0,0]
[null,null,null,null,0,0]
[null,null,null,null,0,0]
[null,null,null,null,0,0]
[null,null,null,null,0,0]
[null,null,null,null,0,0]
[null,null,null,null,0,0]
[null,null,null,null,0,0]
[null,null,null,null,0,0]
[null,null,null,null,0,0]
[null,null,null,null,0,0]

{"sheet":"Sheet4","index":3,"n_rows":11,"n_cols":4,"rows_kept":11,"cut":false,"hidden":false,"merged":[]}
["الكود","عدد","السعر","س1"]
["اسدالات 3d 2020",4,170,220]
["اسدال فسكوز ",14,110,160]
["فسكوز كم ",1,125,140]
["عبايه استقبال نبيتي",1,275,300]
["عبايه حمرا فرع ورد",2,150,200]
["عبايه 3 زراير",2,175,220]
["عبايه نبيتي تطريز يدوي",1,160,200]
["اسدال ازالا ليالينا",3,165,220]
["عبايا زيتي ",1,250,290]
["عبايا بيج",1,250,290]

{"sheet":"Sheet5","index":4,"n_rows":1128,"n_cols":6,"rows_kept":1128,"cut":false,"hidden":false,"merged":[]}
["الكود","الصنف","العدد","السعر","ن","السعر"]
[null,"بوكسر ots",6,{"$f":"E2+F2","v":30.8},{"$f":"40/100*F2","v":8.8000000000000007},22]
[390,"بنطلون وشين",6,{"$f":"E3+F3","v":77},{"$f":"40/100*F3","v":22},55]
[1150,"اندر فور ام",12,19.600000000000001,5.6000000000000005,14]
[109,"اندر كارما",6,23.8,6.8000000000000007,17]
[2300,"اندر برنسيس قطن",45,28,8,20]
[1006,"اندر حريمي  p  A",0,19.600000000000001,5.6000000000000005,14]
[1480,"اندر حريمي hana",0,18.2,5.2,13]
["34-73","اندر حريمي md",0,21,6,15]
[2100,"اندر حريمي mhl",0,26.6,7.6000000000000005,19]
[null,"اندر شيكو",12,21,6,15]
[null,"شرابات",52,7,2,5]
["52-50","طقم خالد وباسم",23,35,10,25]
[140,"بوكسر سبيدر مان",8,25.2,7.2,18]
[2410,"طقم 3 اكس",3,84,24,60]
[2411,"طقم 4 اكس",3,84,24,60]
["3x","بوكسر 3اكس ots",3,30.8,8.8000000000000007,22]
["2x","بوكسر جولدن رجالي ",12,25.2,7.2,18]
[12,"  طقم اولادي 102",1,56,16,40]
[14,102,52,56,16,40]
[40,102,1,63,18,45]
[36,102,1,60.2,17.2,43]
[34,102,1,58.8,16.8,42]
[4,102,1,46.2,13.200000000000001,33]
[10,102,1,51.8,14.8,37]
[14,"بناتي 315",1,44.8,12.8,32]
[38,315,1,47.6,13.600000000000001,34]
[34,315,1,44.8,12.8,32]
[36,315,1,46.2,13.200000000000001,33]
[40,315,1,49,14,35]
[10,315,1,42,12,30]
[8,315,1,40.6,11.600000000000001,29]
[8,"اندر مس الاء",12,19.600000000000001,5.6000000000000005,14]
[619,"سوتيان سوفت ساده",0,50.4,14.4,36]
[217,"سوتيان سوفت مشجر",0,50.4,14.4,36]
[68,"سوتيان  رياضي",0,46.2,13.200000000000001,33]
[68,"سوتيان رياضي كبير",0,54.6,15.600000000000001,39]
[37,"سوتيان توب بناتي",0,46.2,13.200000000000001,33]
[6003,"سوتيات سوفت منقط",0,63,18,45]
[9228,"سوتيان عادي a-m",61,53.2,15.200000000000001,38]
[3921,"بوش هنا",0,60.2,17.2,43]
[1688,"بوش ليوميل",0,56,16,40]
[9810,"بوش انشونلي",22,51.8,14.8,37]
[null,"بدي الدباغ",0,49,14,35]
[null,"بدي ديفا",0,49,14,35]
[null,"ليدي",0,49,14,35]
[null,"لجن عادي",0,49,14,35]
[null,"ليزر",23,49,14,35]
[null,"بنطلون الراعي",0,28,8,20]
[null,"بنطلون نهال جامبو",0,29.4,8.4,21]
[null,"بنطلون كارما",0,26.6,7.6000000000000005,19]
[null,"بنطلون سمسمه جنس",0,33.6,9.6000000000000014,24]
[null,"بنطلون ورد 3d",22,29.4,8.4,21]
[null,null,null,0,0]
[null,null,null,0,0]
[null,null,null,0,0]
[null,null,null,0,0]
[null,null,null,0,0]
[null,null,null,0,0]
[null,null,null,0,0]
[null,null,null,0,0]
[null,null,null,0,0]
[null,null,null,0,0]
[null,null,null,0,0]
[null,null,null,0,0]
[null,null,null,0,0]
[null,null,null,{"$f":"E67+F67","v":0},{"$f":"40/100*F67","v":0}]
[null,null,null,0,0]
[null,null,null,0,0]
[null,null,null,0,0]
[null,null,null,0,0]
[null,null,null,0,0]
[null,null,null,0,0]
[null,null,null,0,0]
[null,null,null,0,0]
[null,null,null,0,0]
[null,null,null,0,0]
[null,null,null,0,0]
[null,null,null,0,0]
[null,null,null,0,0]
[null,null,null,0,0]
[null,null,null,0,0]
[null,null,null,0,0]
[null,null,null,0,0]
[null,null,null,0,0]
[null,null,null,0,0]
[null,null,null,0,0]
[null,null,null,0,0]
[null,null,null,0,0]
[null,null,null,0,0]
[null,null,null,0,0]
[null,null,null,0,0]
[null,null,null,0,0]
[null,null,null,0,0]
[null,null,null,0,0]
[null,null,null,0,0]
[null,null,null,0,0]
[null,null,null,0,0]
[null,null,null,0,0]
[null,null,null,0,0]
[null,null,null,0,0]
[null,null,null,0,0]
[null,null,null,0,0]
[null,null,null,0,0]
[null,null,null,0,0]
[null,null,null,0,0]
[null,null,null,0,0]
[null,null,null,0,0]
[null,null,null,0,0]
[null,null,null,0,0]
[null,null,null,0,0]
[null,null,null,0,0]
[null,null,null,0,0]
[null,null,null,0,0]
[null,null,null,0,0]
[null,null,null,0,0]
[null,null,null,0,0]
[null,null,null,0,0]
[null,null,null,0,0]
[null,null,null,0,0]
[null,null,null,0,0]
[null,null,null,0,0]
[null,null,null,0,0]
[null,null,null,0,0]
[null,null,null,0,0]
[null,null,null,0,0]
[null,null,null,0,0]
[null,null,null,0,0]
[null,null,null,0,0]
[null,null,null,0,0]
[null,null,null,{"$f":"E131+F131","v":0},{"$f":"40/100*F131","v":0}]
[null,null,null,0,0]
[null,null,null,0,0]
[null,null,null,0,0]
[null,null,null,0,0]
[null,null,null,0,0]
[null,null,null,0,0]
[null,null,null,0,0]
[null,null,null,0,0]
[null,null,null,0,0]
[null,null,null,0,0]
[null,null,null,0,0]
[null,null,null,0,0]
[null,null,null,0,0]
[null,null,null,0,0]
[null,null,null,0,0]
[null,null,null,0,0]
[null,null,null,0,0]
[null,null,null,0,0]
[null,null,null,0,0]
[null,null,null,0,0]
[null,null,null,0,0]
[null,null,null,0,0]
[null,null,null,0,0]
[null,null,null,0,0]
[null,null,null,0,0]
[null,null,null,0,0]
[null,null,null,0,0]
[null,null,null,0,0]
[null,null,null,0,0]
[null,null,null,0,0]
[null,null,null,0,0]
[null,null,null,0,0]
[null,null,null,0,0]
[null,null,null,0,0]
[null,null,null,0,0]
[null,null,null,0,0]
[null,null,null,0,0]
[null,null,null,0,0]
[null,null,null,0,0]
[null,null,null,0,0]
[null,null,null,0,0]
[null,null,null,0,0]
[null,null,null,0,0]
[null,null,null,0,0]
[null,null,null,0,0]
[null,null,null,0,0]
[null,null,null,0,0]
[null,null,null,0,0]
[null,null,null,0,0]
[null,null,null,0,0]
[null,null,null,0,0]
[null,null,null,0,0]
[null,null,null,0,0]
[null,null,null,0,0]
[null,null,null,0,0]
[null,null,null,0,0]
[null,null,null,0,0]
[null,null,null,0,0]
[null,null,null,0,0]
[null,null,null,0,0]
[null,null,null,0,0]
[null,null,null,0,0]
[null,null,null,0,0]
[null,null,null,{"$f":"E195+F195","v":0},{"$f":"40/100*F195","v":0}]
[null,null,null,0,0]
[null,null,null,0,0]
[null,null,null,0,0]
[null,null,null,0,0]
[null,null,null,0,0]
[null,null,null,0,0]
[null,null,null,0,0]
[null,null,null,0,0]
[null,null,null,0,0]
[null,null,null,0,0]
[null,null,null,0,0]
[null,null,null,0,0]
[null,null,null,0,0]
[null,null,null,0,0]
[null,null,null,0,0]
[null,null,null,0,0]
[null,null,null,0,0]
[null,null,null,0,0]
[null,null,null,0,0]
[null,null,null,0,0]
[null,null,null,0,0]
[null,null,null,0,0]
[null,null,null,0,0]
[null,null,null,0,0]
[null,null,null,0,0]
[null,null,null,0,0]
[null,null,null,0,0]
[null,null,null,0,0]
[null,null,null,0,0]
[null,null,null,0,0]
[null,null,null,0,0]
[null,null,null,0,0]
[null,null,null,0,0]
[null,null,null,0,0]
[null,null,null,0,0]
[null,null,null,0,0]
[null,null,null,0,0]
[null,null,null,0,0]
[null,null,null,0,0]
[null,null,null,0,0]
[null,null,null,0,0]
[null,null,null,0,0]
[null,null,null,0,0]
[null,null,null,0,0]
[null,null,null,0,0]
[null,null,null,0,0]
[null,null,null,0,0]
[null,null,null,0,0]
[null,null,null,0,0]
[null,null,null,0,0]
[null,null,null,0,0]
[null,null,null,0,0]
[null,null,null,0,0]
[null,null,null,0,0]
[null,null,null,0,0]
[null,null,null,0,0]
[null,null,null,0,0]
[null,null,null,0,0]
[null,null,null,0,0]
[null,null,null,0,0]
[null,null,null,0,0]
[null,null,null,0,0]
[null,null,null,0,0]
[null,null,null,{"$f":"E259+F259","v":0},{"$f":"40/100*F259","v":0}]
[null,null,null,0,0]
[null,null,null,0,0]
[null,null,null,0,0]
[null,null,null,0,0]
[null,null,null,0,0]
[null,null,null,0,0]
[null,null,null,0,0]
[null,null,null,0,0]
[null,null,null,0,0]
[null,null,null,0,0]
[null,null,null,0,0]
[null,null,null,0,0]
[null,null,null,0,0]
[null,null,null,0,0]
[null,null,null,0,0]
[null,null,null,0,0]
[null,null,null,0,0]
[null,null,null,0,0]
[null,null,null,0,0]
[null,null,null,0,0]
[null,null,null,0,0]
[null,null,null,0,0]
[null,null,null,0,0]
[null,null,null,0,0]
[null,null,null,0,0]
[null,null,null,0,0]
[null,null,null,0,0]
[null,null,null,0,0]
[null,null,null,0,0]
[null,null,null,0,0]
[null,null,null,0,0]
[null,null,null,0,0]
[null,null,null,0,0]
[null,null,null,0,0]
[null,null,null,0,0]
[null,null,null,0,0]
[null,null,null,0,0]
[null,null,null,0,0]
[null,null,null,0,0]
[null,null,null,0,0]
[null,null,null,0,0]
[null,null,null,0,0]
[null,null,null,0,0]
[null,null,null,0,0]
[null,null,null,0,0]
[null,null,null,0,0]
[null,null,null,0,0]
[null,null,null,0,0]
[null,null,null,0,0]
[null,null,null,0,0]
[null,null,null,0,0]
[null,null,null,0,0]
[null,null,null,0,0]
[null,null,null,0,0]
[null,null,null,0,0]
[null,null,null,0,0]
[null,null,null,0,0]
[null,null,null,0,0]
[null,null,null,0,0]
[null,null,null,0,0]
[null,null,null,0,0]
[null,null,null,0,0]
[null,null,null,0,0]
[null,null,null,{"$f":"E323+F323","v":0},{"$f":"40/100*F323","v":0}]
[null,null,null,0,0]
[null,null,null,0,0]
[null,null,null,0,0]
[null,null,null,0,0]
[null,null,null,0,0]
[null,null,null,0,0]
[null,null,null,0,0]
[null,null,null,0,0]
[null,null,null,0,0]
[null,null,null,0,0]
[null,null,null,0,0]
[null,null,null,0,0]
[null,null,null,0,0]
[null,null,null,0,0]
[null,null,null,0,0]
[null,null,null,0,0]
[null,null,null,0,0]
[null,null,null,0,0]
[null,null,null,0,0]
[null,null,null,0,0]
[null,null,null,0,0]
[null,null,null,0,0]
[null,null,null,0,0]
[null,null,null,0,0]
[null,null,null,0,0]
[null,null,null,0,0]
[null,null,null,0,0]
[null,null,null,0,0]
[null,null,null,0,0]
[null,null,null,0,0]
[null,null,null,0,0]
[null,null,null,0,0]
[null,null,null,0,0]
[null,null,null,0,0]
[null,null,null,0,0]
[null,null,null,0,0]
[null,null,null,0,0]
[null,null,null,0,0]
[null,null,null,0,0]
[null,null,null,0,0]
[null,null,null,0,0]
[null,null,null,0,0]
[null,null,null,0,0]
[null,null,null,0,0]
[null,null,null,0,0]
[null,null,null,0,0]
[null,null,null,0,0]
[null,null,null,0,0]
[null,null,null,0,0]
[null,null,null,0,0]
[null,null,null,0,0]
[null,null,null,0,0]
[null,null,null,0,0]
[null,null,null,0,0]
[null,null,null,0,0]
[null,null,null,0,0]
[null,null,null,0,0]
[null,null,null,0,0]
[null,null,null,0,0]
[null,null,null,0,0]
[null,null,null,0,0]
[null,null,null,0,0]
[null,null,null,0,0]
[null,null,null,{"$f":"E387+F387","v":0},{"$f":"40/100*F387","v":0}]
[null,null,null,0,0]
[null,null,null,0,0]
[null,null,null,0,0]
[null,null,null,0,0]
[null,null,null,0,0]
[null,null,null,0,0]
[null,null,null,0,0]
[null,null,null,0,0]
[null,null,null,0,0]
[null,null,null,0,0]
[null,null,null,0,0]
[null,null,null,0,0]
[null,null,null,0,0]
[null,null,null,0,0]
[null,null,null,0,0]
[null,null,null,0,0]
[null,null,null,0,0]
[null,null,null,0,0]
[null,null,null,0,0]
[null,null,null,0,0]
[null,null,null,0,0]
[null,null,null,0,0]
[null,null,null,0,0]
[null,null,null,0,0]
[null,null,null,0,0]
[null,null,null,0,0]
[null,null,null,0,0]
[null,null,null,0,0]
[null,null,null,0,0]
[null,null,null,0,0]
[null,null,null,0,0]
[null,null,null,0,0]
[null,null,null,0,0]
[null,null,null,0,0]
[null,null,null,0,0]
[null,null,null,0,0]
[null,null,null,0,0]
[null,null,null,0,0]
[null,null,null,0,0]
[null,null,null,0,0]
[null,null,null,0,0]
[null,null,null,0,0]
[null,null,null,0,0]
[null,null,null,0,0]
[null,null,null,0,0]
[null,null,null,0,0]
[null,null,null,0,0]
[null,null,null,0,0]
[null,null,null,0,0]
[null,null,null,0,0]
[null,null,null,0,0]
[null,null,null,0,0]
[null,null,null,0,0]
[null,null,null,0,0]
[null,null,null,0,0]
[null,null,null,0,0]
[null,null,null,0,0]
[null,null,null,0,0]
[null,null,null,0,0]
[null,null,null,0,0]
[null,null,null,0,0]
[null,null,null,0,0]
[null,null,null,0,0]
[null,null,null,{"$f":"E451+F451","v":0},{"$f":"40/100*F451","v":0}]
[null,null,null,0,0]
[null,null,null,0,0]
[null,null,null,0,0]
[null,null,null,0,0]
[null,null,null,0,0]
[null,null,null,0,0]
[null,null,null,0,0]
[null,null,null,0,0]
[null,null,null,0,0]
[null,null,null,0,0]
[null,null,null,0,0]
[null,null,null,0,0]
[null,null,null,0,0]
[null,null,null,0,0]
[null,null,null,0,0]
[null,null,null,0,0]
[null,null,null,0,0]
[null,null,null,0,0]
[null,null,null,0,0]
[null,null,null,0,0]
[null,null,null,0,0]
[null,null,null,0,0]
[null,null,null,0,0]
[null,null,null,0,0]
[null,null,null,0,0]
[null,null,null,0,0]
[null,null,null,0,0]
[null,null,null,0,0]
[null,null,null,0,0]
[null,null,null,0,0]
[null,null,null,0,0]
[null,null,null,0,0]
[null,null,null,0,0]
[null,null,null,0,0]
[null,null,null,0,0]
[null,null,null,0,0]
[null,null,null,0,0]
[null,null,null,0,0]
[null,null,null,0,0]
[null,null,null,0,0]
[null,null,null,0,0]
[null,null,null,0,0]
[null,null,null,0,0]
[null,null,null,0,0]
[null,null,null,0,0]
[null,null,null,0,0]
[null,null,null,0,0]
[null,null,null,0,0]
[null,null,null,0,0]
[null,null,null,0,0]
[null,null,null,0,0]
[null,null,null,0,0]
[null,null,null,0,0]
[null,null,null,0,0]
[null,null,null,0,0]
[null,null,null,0,0]
[null,null,null,0,0]
[null,null,null,0,0]
[null,null,null,0,0]
[null,null,null,0,0]
[null,null,null,0,0]
[null,null,null,0,0]
[null,null,null,0,0]
[null,null,null,{"$f":"E515+F515","v":0},{"$f":"40/100*F515","v":0}]
[null,null,null,0,0]
[null,null,null,0,0]
[null,null,null,0,0]
[null,null,null,0,0]
[null,null,null,0,0]
[null,null,null,0,0]
[null,null,null,0,0]
[null,null,null,0,0]
[null,null,null,0,0]
[null,null,null,0,0]
[null,null,null,0,0]
[null,null,null,0,0]
[null,null,null,0,0]
[null,null,null,0,0]
[null,null,null,0,0]
[null,null,null,0,0]
[null,null,null,0,0]
[null,null,null,0,0]
[null,null,null,0,0]
[null,null,null,0,0]
[null,null,null,0,0]
[null,null,null,0,0]
[null,null,null,0,0]
[null,null,null,0,0]
[null,null,null,0,0]
[null,null,null,0,0]
[null,null,null,0,0]
[null,null,null,0,0]
[null,null,null,0,0]
[null,null,null,0,0]
[null,null,null,0,0]
[null,null,null,0,0]
[null,null,null,0,0]
[null,null,null,0,0]
[null,null,null,0,0]
[null,null,null,0,0]
[null,null,null,0,0]
[null,null,null,0,0]
[null,null,null,0,0]
[null,null,null,0,0]
[null,null,null,0,0]
[null,null,null,0,0]
[null,null,null,0,0]
[null,null,null,0,0]
[null,null,null,0,0]
[null,null,null,0,0]
[null,null,null,0,0]
[null,null,null,0,0]
[null,null,null,0,0]
[null,null,null,0,0]
[null,null,null,0,0]
[null,null,null,0,0]
[null,null,null,0,0]
[null,null,null,0,0]
[null,null,null,0,0]
[null,null,null,0,0]
[null,null,null,0,0]
[null,null,null,0,0]
[null,null,null,0,0]
[null,null,null,0,0]
[null,null,null,0,0]
[null,null,null,0,0]
[null,null,null,0,0]
[null,null,null,{"$f":"E579+F579","v":0},{"$f":"40/100*F579","v":0}]
[null,null,null,0,0]
[null,null,null,0,0]
[null,null,null,0,0]
[null,null,null,0,0]
[null,null,null,0,0]
[null,null,null,0,0]
[null,null,null,0,0]
[null,null,null,0,0]
[null,null,null,0,0]
[null,null,null,0,0]
[null,null,null,0,0]
[null,null,null,0,0]
[null,null,null,0,0]
[null,null,null,0,0]
[null,null,null,0,0]
[null,null,null,0,0]
[null,null,null,0,0]
[null,null,null,0,0]
[null,null,null,0,0]
[null,null,null,0,0]
[null,null,null,0,0]
[null,null,null,0,0]
[null,null,null,0,0]
[null,null,null,0,0]
[null,null,null,0,0]
[null,null,null,0,0]
[null,null,null,0,0]
[null,null,null,0,0]
[null,null,null,0,0]
[null,null,null,0,0]
[null,null,null,0,0]
[null,null,null,0,0]
[null,null,null,0,0]
[null,null,null,0,0]
[null,null,null,0,0]
[null,null,null,0,0]
[null,null,null,0,0]
[null,null,null,0,0]
[null,null,null,0,0]
[null,null,null,0,0]
[null,null,null,0,0]
[null,null,null,0,0]
[null,null,null,0,0]
[null,null,null,0,0]
[null,null,null,0,0]
[null,null,null,0,0]
[null,null,null,0,0]
[null,null,null,0,0]
[null,null,null,0,0]
[null,null,null,0,0]
[null,null,null,0,0]
[null,null,null,0,0]
[null,null,null,0,0]
[null,null,null,0,0]
[null,null,null,0,0]
[null,null,null,0,0]
[null,null,null,0,0]
[null,null,null,0,0]
[null,null,null,0,0]
[null,null,null,0,0]
[null,null,null,0,0]
[null,null,null,0,0]
[null,null,null,0,0]
[null,null,null,{"$f":"E643+F643","v":0},{"$f":"40/100*F643","v":0}]
[null,null,null,0,0]
[null,null,null,0,0]
[null,null,null,0,0]
[null,null,null,0,0]
[null,null,null,0,0]
[null,null,null,0,0]
[null,null,null,0,0]
[null,null,null,0,0]
[null,null,null,0,0]
[null,null,null,0,0]
[null,null,null,0,0]
[null,null,null,0,0]
[null,null,null,0,0]
[null,null,null,0,0]
[null,null,null,0,0]
[null,null,null,0,0]
[null,null,null,0,0]
[null,null,null,0,0]
[null,null,null,0,0]
[null,null,null,0,0]
[null,null,null,0,0]
[null,null,null,0,0]
[null,null,null,0,0]
[null,null,null,0,0]
[null,null,null,0,0]
[null,null,null,0,0]
[null,null,null,0,0]
[null,null,null,0,0]
[null,null,null,0,0]
[null,null,null,0,0]
[null,null,null,0,0]
[null,null,null,0,0]
[null,null,null,0,0]
[null,null,null,0,0]
[null,null,null,0,0]
[null,null,null,0,0]
[null,null,null,0,0]
[null,null,null,0,0]
[null,null,null,0,0]
[null,null,null,0,0]
[null,null,null,0,0]
[null,null,null,0,0]
[null,null,null,0,0]
[null,null,null,0,0]
[null,null,null,0,0]
[null,null,null,0,0]
[null,null,null,0,0]
[null,null,null,0,0]
[null,null,null,0,0]
[null,null,null,0,0]
[null,null,null,0,0]
[null,null,null,0,0]
[null,null,null,0,0]
[null,null,null,0,0]
[null,null,null,0,0]
[null,null,null,0,0]
[null,null,null,0,0]
[null,null,null,0,0]
[null,null,null,0,0]
[null,null,null,0,0]
[null,null,null,0,0]
[null,null,null,0,0]
[null,null,null,0,0]
[null,null,null,{"$f":"E707+F707","v":0},{"$f":"40/100*F707","v":0}]
[null,null,null,0,0]
[null,null,null,0,0]
[null,null,null,0,0]
[null,null,null,0,0]
[null,null,null,0,0]
[null,null,null,0,0]
[null,null,null,0,0]
[null,null,null,0,0]
[null,null,null,0,0]
[null,null,null,0,0]
[null,null,null,0,0]
[null,null,null,0,0]
[null,null,null,0,0]
[null,null,null,0,0]
[null,null,null,0,0]
[null,null,null,0,0]
[null,null,null,0,0]
[null,null,null,0,0]
[null,null,null,0,0]
[null,null,null,0,0]
[null,null,null,0,0]
[null,null,null,0,0]
[null,null,null,0,0]
[null,null,null,0,0]
[null,null,null,0,0]
[null,null,null,0,0]
[null,null,null,0,0]
[null,null,null,0,0]
[null,null,null,0,0]
[null,null,null,0,0]
[null,null,null,0,0]
[null,null,null,0,0]
[null,null,null,0,0]
[null,null,null,0,0]
[null,null,null,0,0]
[null,null,null,0,0]
[null,null,null,0,0]
[null,null,null,0,0]
[null,null,null,0,0]
[null,null,null,0,0]
[null,null,null,0,0]
[null,null,null,0,0]
[null,null,null,0,0]
[null,null,null,0,0]
[null,null,null,0,0]
[null,null,null,0,0]
[null,null,null,0,0]
[null,null,null,0,0]
[null,null,null,0,0]
[null,null,null,0,0]
[null,null,null,0,0]
[null,null,null,0,0]
[null,null,null,0,0]
[null,null,null,0,0]
[null,null,null,0,0]
[null,null,null,0,0]
[null,null,null,0,0]
[null,null,null,0,0]
[null,null,null,0,0]
[null,null,null,0,0]
[null,null,null,0,0]
[null,null,null,0,0]
[null,null,null,0,0]
[null,null,null,{"$f":"E771+F771","v":0},{"$f":"40/100*F771","v":0}]
[null,null,null,0,0]
[null,null,null,0,0]
[null,null,null,0,0]
[null,null,null,0,0]
[null,null,null,0,0]
[null,null,null,0,0]
[null,null,null,0,0]
[null,null,null,0,0]
[null,null,null,0,0]
[null,null,null,0,0]
[null,null,null,0,0]
[null,null,null,0,0]
[null,null,null,0,0]
[null,null,null,0,0]
[null,null,null,0,0]
[null,null,null,0,0]
[null,null,null,0,0]
[null,null,null,0,0]
[null,null,null,0,0]
[null,null,null,0,0]
[null,null,null,0,0]
[null,null,null,0,0]
[null,null,null,0,0]
[null,null,null,0,0]
[null,null,null,0,0]
[null,null,null,0,0]
[null,null,null,0,0]
[null,null,null,0,0]
[null,null,null,0,0]
[null,null,null,0,0]
[null,null,null,0,0]
[null,null,null,0,0]
[null,null,null,0,0]
[null,null,null,0,0]
[null,null,null,0,0]
[null,null,null,0,0]
[null,null,null,0,0]
[null,null,null,0,0]
[null,null,null,0,0]
[null,null,null,0,0]
[null,null,null,0,0]
[null,null,null,0,0]
[null,null,null,0,0]
[null,null,null,0,0]
[null,null,null,0,0]
[null,null,null,0,0]
[null,null,null,0,0]
[null,null,null,0,0]
[null,null,null,0,0]
[null,null,null,0,0]
[null,null,null,0,0]
[null,null,null,0,0]
[null,null,null,0,0]
[null,null,null,0,0]
[null,null,null,0,0]
[null,null,null,0,0]
[null,null,null,0,0]
[null,null,null,0,0]
[null,null,null,0,0]
[null,null,null,0,0]
[null,null,null,0,0]
[null,null,null,0,0]
[null,null,null,0,0]
[null,null,null,{"$f":"E835+F835","v":0},{"$f":"40/100*F835","v":0}]
[null,null,null,0,0]
[null,null,null,0,0]
[null,null,null,0,0]
[null,null,null,0,0]
[null,null,null,0,0]
[null,null,null,0,0]
[null,null,null,0,0]
[null,null,null,0,0]
[null,null,null,0,0]
[null,null,null,0,0]
[null,null,null,0,0]
[null,null,null,0,0]
[null,null,null,0,0]
[null,null,null,0,0]
[null,null,null,0,0]
[null,null,null,0,0]
[null,null,null,0,0]
[null,null,null,0,0]
[null,null,null,0,0]
[null,null,null,0,0]
[null,null,null,0,0]
[null,null,null,0,0]
[null,null,null,0,0]
[null,null,null,0,0]
[null,null,null,0,0]
[null,null,null,0,0]
[null,null,null,0,0]
[null,null,null,0,0]
[null,null,null,0,0]
[null,null,null,0,0]
[null,null,null,0,0]
[null,null,null,0,0]
[null,null,null,0,0]
[null,null,null,0,0]
[null,null,null,0,0]
[null,null,null,0,0]
[null,null,null,0,0]
[null,null,null,0,0]
[null,null,null,0,0]
[null,null,null,0,0]
[null,null,null,0,0]
[null,null,null,0,0]
[null,null,null,0,0]
[null,null,null,0,0]
[null,null,null,0,0]
[null,null,null,0,0]
[null,null,null,0,0]
[null,null,null,0,0]
[null,null,null,0,0]
[null,null,null,0,0]
[null,null,null,0,0]
[null,null,null,0,0]
[null,null,null,0,0]
[null,null,null,0,0]
[null,null,null,0,0]
[null,null,null,0,0]
[null,null,null,0,0]
[null,null,null,0,0]
[null,null,null,0,0]
[null,null,null,0,0]
[null,null,null,0,0]
[null,null,null,0,0]
[null,null,null,0,0]
[null,null,null,{"$f":"E899+F899","v":0},{"$f":"40/100*F899","v":0}]
[null,null,null,0,0]
[null,null,null,0,0]
[null,null,null,0,0]
[null,null,null,0,0]
[null,null,null,0,0]
[null,null,null,0,0]
[null,null,null,0,0]
[null,null,null,0,0]
[null,null,null,0,0]
[null,null,null,0,0]
[null,null,null,0,0]
[null,null,null,0,0]
[null,null,null,0,0]
[null,null,null,0,0]
[null,null,null,0,0]
[null,null,null,0,0]
[null,null,null,0,0]
[null,null,null,0,0]
[null,null,null,0,0]
[null,null,null,0,0]
[null,null,null,0,0]
[null,null,null,0,0]
[null,null,null,0,0]
[null,null,null,0,0]
[null,null,null,0,0]
[null,null,null,0,0]
[null,null,null,0,0]
[null,null,null,0,0]
[null,null,null,0,0]
[null,null,null,0,0]
[null,null,null,0,0]
[null,null,null,0,0]
[null,null,null,0,0]
[null,null,null,0,0]
[null,null,null,0,0]
[null,null,null,0,0]
[null,null,null,0,0]
[null,null,null,0,0]
[null,null,null,0,0]
[null,null,null,0,0]
[null,null,null,0,0]
[null,null,null,0,0]
[null,null,null,0,0]
[null,null,null,0,0]
[null,null,null,0,0]
[null,null,null,0,0]
[null,null,null,0,0]
[null,null,null,0,0]
[null,null,null,0,0]
[null,null,null,0,0]
[null,null,null,0,0]
[null,null,null,0,0]
[null,null,null,0,0]
[null,null,null,0,0]
[null,null,null,0,0]
[null,null,null,0,0]
[null,null,null,0,0]
[null,null,null,0,0]
[null,null,null,0,0]
[null,null,null,0,0]
[null,null,null,0,0]
[null,null,null,0,0]
[null,null,null,0,0]
[null,null,null,{"$f":"E963+F963","v":0},{"$f":"40/100*F963","v":0}]
[null,null,null,0,0]
[null,null,null,0,0]
[null,null,null,0,0]
[null,null,null,0,0]
[null,null,null,0,0]
[null,null,null,0,0]
[null,null,null,0,0]
[null,null,null,0,0]
[null,null,null,0,0]
[null,null,null,0,0]
[null,null,null,0,0]
[null,null,null,0,0]
[null,null,null,0,0]
[null,null,null,0,0]
[null,null,null,0,0]
[null,null,null,0,0]
[null,null,null,0,0]
[null,null,null,0,0]
[null,null,null,0,0]
[null,null,null,0,0]
[null,null,null,0,0]
[null,null,null,0,0]
[null,null,null,0,0]
[null,null,null,0,0]
[null,null,null,0,0]
[null,null,null,0,0]
[null,null,null,0,0]
[null,null,null,0,0]
[null,null,null,0,0]
[null,null,null,0,0]
[null,null,null,0,0]
[null,null,null,0,0]
[null,null,null,0,0]
[null,null,null,0,0]
[null,null,null,0,0]
[null,null,null,0,0]
[null,null,null,0,0]
[null,null,null,0,0]
[null,null,null,0,0]
[null,null,null,0,0]
[null,null,null,0,0]
[null,null,null,0,0]
[null,null,null,0,0]
[null,null,null,0,0]
[null,null,null,0,0]
[null,null,null,0,0]
[null,null,null,0,0]
[null,null,null,0,0]
[null,null,null,0,0]
[null,null,null,0,0]
[null,null,null,0,0]
[null,null,null,0,0]
[null,null,null,0,0]
[null,null,null,0,0]
[null,null,null,0,0]
[null,null,null,0,0]
[null,null,null,0,0]
[null,null,null,0,0]
[null,null,null,0,0]
[null,null,null,0,0]
[null,null,null,0,0]
[null,null,null,0,0]
[null,null,null,0,0]
[null,null,null,{"$f":"E1027+F1027","v":0},{"$f":"40/100*F1027","v":0}]
[null,null,null,0,0]
[null,null,null,0,0]
[null,null,null,0,0]
[null,null,null,0,0]
[null,null,null,0,0]
[null,null,null,0,0]
[null,null,null,0,0]
[null,null,null,0,0]
[null,null,null,0,0]
[null,null,null,0,0]
[null,null,null,0,0]
[null,null,null,0,0]
[null,null,null,0,0]
[null,null,null,0,0]
[null,null,null,0,0]
[null,null,null,0,0]
[null,null,null,0,0]
[null,null,null,0,0]
[null,null,null,0,0]
[null,null,null,0,0]
[null,null,null,0,0]
[null,null,null,0,0]
[null,null,null,0,0]
[null,null,null,0,0]
[null,null,null,0,0]
[null,null,null,0,0]
[null,null,null,0,0]
[null,null,null,0,0]
[null,null,null,0,0]
[null,null,null,0,0]
[null,null,null,0,0]
[null,null,null,0,0]
[null,null,null,0,0]
[null,null,null,0,0]
[null,null,null,0,0]
[null,null,null,0,0]
[null,null,null,0,0]
[null,null,null,0,0]
[null,null,null,0,0]
[null,null,null,0,0]
[null,null,null,0,0]
[null,null,null,0,0]
[null,null,null,0,0]
[null,null,null,0,0]
[null,null,null,0,0]
[null,null,null,0,0]
[null,null,null,0,0]
[null,null,null,0,0]
[null,null,null,0,0]
[null,null,null,0,0]
[null,null,null,0,0]
[null,null,null,0,0]
[null,null,null,0,0]
[null,null,null,0,0]
[null,null,null,0,0]
[null,null,null,0,0]
[null,null,null,0,0]
[null,null,null,0,0]
[null,null,null,0,0]
[null,null,null,0,0]
[null,null,null,0,0]
[null,null,null,0,0]
[null,null,null,0,0]
[null,null,null,{"$f":"E1091+F1091","v":0},{"$f":"40/100*F1091","v":0}]
[null,null,null,0,0]
[null,null,null,0,0]
[null,null,null,0,0]
[null,null,null,0,0]
[null,null,null,0,0]
[null,null,null,0,0]
[null,null,null,0,0]
[null,null,null,0,0]
[null,null,null,0,0]
[null,null,null,0,0]
[null,null,null,0,0]
[null,null,null,0,0]
[null,null,null,0,0]
[null,null,null,0,0]
[null,null,null,0,0]
[null,null,null,0,0]
[null,null,null,0,0]
[null,null,null,0,0]
[null,null,null,0,0]
[null,null,null,0,0]
[null,null,null,0,0]
[null,null,null,0,0]
[null,null,null,0,0]
[null,null,null,0,0]
[null,null,null,0,0]
[null,null,null,0,0]
[null,null,null,0,0]
[null,null,null,0,0]
[null,null,null,0,0]
[null,null,null,0,0]
[null,null,null,0,0]
[null,null,null,0,0]
[null,null,null,0,0]
[null,null,null,0,0]
[null,null,null,0,0]
[null,null,null,0,0]
[null,null,null,0,0]

{"sheet":"Sheet6","index":5,"n_rows":14,"n_cols":7,"rows_kept":14,"cut":false,"hidden":false,"merged":[]}
["الصنف","العدد","ن","السعر","س1"]
["حجاب سوري قطعتين",15,18,{"$f":"40/100*C2","v":7.2},{"$f":"C2+D2","v":25.2}]
["حجاب قطعه",3,18,{"$f":"40/100*C3","v":7.2},{"$f":"C3+D3","v":25.2}]
["بندانه سوري",16,5,2,7]
["بونيه كب",4,4,1.6,5.6]
["بندانه فلونكه",3,10,4,14,null,"طرح"]
["نقاب وش استيك",15,20,8,28]
["طرحه بدون ",7,55,22,77]
["نقاب مروحه",3,50,20,70]
["ماليزي تندا قطعتين",4,70,28,98]
["خمار مشجر",3,45,18,63]
["خمار عادي",9,35,14,49]
["خمار عادي امهات ",2,35,14,49]
["خمار ماليزي قطعه واحده",1,55,22,77]

{"sheet":"Sheet7","index":6,"n_rows":13,"n_cols":6,"rows_kept":13,"cut":false,"hidden":false,"merged":[]}
["الكود","عدد","السعر","ن","س1"]
["ملايه صاص 3d",1,165,{"$f":"30/100*C2","v":49.5},200]
["ذا بوس",1,180,{"$f":"30/100*C3","v":54},220]
["صاصا مطبوع ",3,75,22.5,100,"مفروشات"]
["صاصا سفري",2,90,27,140]
["فوطه الفخراني",1,135,40.5,175]
["الجمل",1,200,60,250]
["ايمان",1,175,52.5,220]
["قنديل حمام",1,25,7.5,60]
["الشيف",1,75,22.5,110]
["ريتال حمام tulip",1,55,16.5,80]
["فالكون",1,80,24,120]
["حافظه سجاد",1,215,64.5,250]

{"sheet":"Sheet8","index":7,"n_rows":4,"n_cols":6,"rows_kept":4,"cut":false,"hidden":false,"merged":[]}
["الكود","الصنف","العدد","السعر","ن","س1"]
[1186,"طقم اطفال",1,null,null,125]
["554_3","الجندي ",1,null,null,129]
["585_4",null,1,null,null,134]